{"text_format":"2","workbook":"xlsx","n_sheets":4,"sheets":["Рейтинг_ОД","Коды","Оценка_Раунд1","Оценка_Раунд2"],"not_rendered":{"charts":0,"images":0,"macros":0,"external_links":0,"defined_names":3,"comments":0,"pivot_tables":0},"unopened":[],"bounds":{"document_bytes":16777216,"sheet_cells":100000,"run_cost":"one","rows_first":2000,"rows_last":500,"rows_between":2000,"halvings":0,"cell_chars":16384,"cell_head_chars":4096},"cells_cut":0,"cells_raw":0,"read":"whole","date_system":"1900"}

{"sheet":"Рейтинг_ОД","index":0,"n_rows":71,"n_cols":8,"rows_kept":71,"cut":false,"hidden":false,"merged":[]}
["Ведомство","Статус","Балл 1 раунда","Балл 2 раунда","Итог","Максимум","Rate","Индекс"]
["Главное управление специальных программ Президента Российской Федерации (ГУСП)","През",0,0,0,154,{"$f":"E2/F2","v":0},"C"]
["Государственная фельдъегерская служба Российской Федерации (ГФС России)","През",64,63,127,154,{"$f":"E3/F3","v":0.82467532467532467},"A"]
["Казначейство России","Прав",70,71,141,154,{"$f":"E4/F4","v":0.91558441558441561},"A"]
["МВД России","През",68,69,137,154,{"$f":"E5/F5","v":0.88961038961038963},"A"]
["МИД России","През",63,44,107,154,{"$f":"E6/F6","v":0.69480519480519476},"B"]
["Минвостокразвития России","Прав",65,70,135,154,{"$f":"E7/F7","v":0.87662337662337664},"A"]
["Минздрав России","Прав",51,64,115,154,{"$f":"E8/F8","v":0.74675324675324672},"A"]
["Минкультуры России","Прав",67,66,133,154,{"$f":"E9/F9","v":0.86363636363636365},"A"]
["Минобороны России","През",0,1,1,154,{"$f":"E10/F10","v":6.4935064935064939E-3},"C"]
["Минобрнауки России","Прав",69,64,133,154,{"$f":"E11/F11","v":0.86363636363636365},"A"]
["Минприроды России","Прав",66,72,138,154,{"$f":"E12/F12","v":0.89610389610389607},"A"]
["Минпромторг России","Прав",56,66,122,154,{"$f":"E13/F13","v":0.79220779220779225},"A"]
["Минпросвещения России","Прав",68,68,136,154,{"$f":"E14/F14","v":0.88311688311688308},"A"]
["Минсельхоз России","Прав",56,71,127,154,{"$f":"E15/F15","v":0.82467532467532467},"A"]
["Минспорт России","Прав",48,47,95,154,{"$f":"E16/F16","v":0.61688311688311692},"B"]
["Минстрой России","Прав",66,73,139,154,{"$f":"E17/F17","v":0.90259740259740262},"A"]
["Минтранс России","Прав",54,61,115,154,{"$f":"E18/F18","v":0.74675324675324672},"A"]
["Минтруд России","Прав",65,69,134,154,{"$f":"E19/F19","v":0.87012987012987009},"A"]
["Минфин России","Прав",70,60,130,154,{"$f":"E20/F20","v":0.8441558441558441},"A"]
["Минцифры России","Прав",66,60,126,154,{"$f":"E21/F21","v":0.81818181818181823},"A"]
["Минэкономразвития России","Прав",67,55,122,154,{"$f":"E22/F22","v":0.79220779220779225},"A"]
["Минэнерго России","Прав",70,69,139,154,{"$f":"E23/F23","v":0.90259740259740262},"A"]
["Минюст России","През",67,53,120,154,{"$f":"E24/F24","v":0.77922077922077926},"A"]
["МЧС России","През",49,52,101,154,{"$f":"E25/F25","v":0.6558441558441559},"B"]
["Росавиация","Прав",71,64,135,154,{"$f":"E26/F26","v":0.87662337662337664},"A"]
["Росавтодор","Прав",57,72,129,154,{"$f":"E27/F27","v":0.83766233766233766},"A"]
["Росаккредитация","Прав",46,63,109,154,{"$f":"E28/F28","v":0.70779220779220775},"A"]
["Росалкогольрегулирование","Прав",66,65,131,154,{"$f":"E29/F29","v":0.85064935064935066},"A"]
["Росархив","През",53,61,114,154,{"$f":"E30/F30","v":0.74025974025974028},"A"]
["Росводресурсы","Прав",68,53,121,154,{"$f":"E31/F31","v":0.7857142857142857},"A"]
["Росгвардия","През",63,48,111,154,{"$f":"E32/F32","v":0.72077922077922074},"A"]
["Росгидромет","Прав",52,57,109,154,{"$f":"E33/F33","v":0.70779220779220775},"A"]
["Росжелдор","Прав",65,69,134,154,{"$f":"E34/F34","v":0.87012987012987009},"A"]
["Росздравнадзор","Прав",69,69,138,154,{"$f":"E35/F35","v":0.89610389610389607},"A"]
["Росимущество","Прав",70,73,143,154,{"$f":"E36/F36","v":0.9285714285714286},"A"]
["Роскомнадзор","Прав",49,60,109,154,{"$f":"E37/F37","v":0.70779220779220775},"A"]
["Рослесхоз","Прав",58,68,126,154,{"$f":"E38/F38","v":0.81818181818181823},"A"]
["Росмолодёжь","Прав",63,62,125,154,{"$f":"E39/F39","v":0.81168831168831168},"A"]
["Росморречфлот","Прав",49,59,108,154,{"$f":"E40/F40","v":0.70129870129870131},"A"]
["Роснедра","Прав",56,46,102,154,{"$f":"E41/F41","v":0.66233766233766234},"B"]
["Рособрнадзор","Прав",56,49,105,154,{"$f":"E42/F42","v":0.68181818181818177},"B"]
["Роспатент","Прав",56,72,128,154,{"$f":"E43/F43","v":0.83116883116883122},"A"]
["Роспотребнадзор","Прав",67,67,134,154,{"$f":"E44/F44","v":0.87012987012987009},"A"]
["Росприроднадзор","Прав",68,57,125,154,{"$f":"E45/F45","v":0.81168831168831168},"A"]
["Росреестр","Прав",67,56,123,154,{"$f":"E46/F46","v":0.79870129870129869},"A"]
["Росрезерв","Прав",54,65,119,154,{"$f":"E47/F47","v":0.77272727272727271},"A"]
["Росрыболовство","Прав",57,57,114,154,{"$f":"E48/F48","v":0.74025974025974028},"A"]
["Россельхознадзор","Прав",53,72,125,154,{"$f":"E49/F49","v":0.81168831168831168},"A"]
["Россотрудничество","През",11,11,22,154,{"$f":"E50/F50","v":0.14285714285714285},"C"]
["Росстандарт","Прав",58,68,126,154,{"$f":"E51/F51","v":0.81818181818181823},"A"]
["Росстат","Прав",71,56,127,154,{"$f":"E52/F52","v":0.82467532467532467},"A"]
["Ростехнадзор","Прав",66,50,116,154,{"$f":"E53/F53","v":0.75324675324675328},"A"]
["Ространснадзор","Прав",64,51,115,154,{"$f":"E54/F54","v":0.74675324675324672},"A"]
["Роструд","Прав",70,65,135,154,{"$f":"E55/F55","v":0.87662337662337664},"A"]
["Ростуризм","Прав",55,71,126,154,{"$f":"E56/F56","v":0.81818181818181823},"A"]
["Росфинмониторинг","През",37,41,78,154,{"$f":"E57/F57","v":0.50649350649350644},"B"]
["СВР России","През",0,0,0,154,{"$f":"E58/F58","v":0},"C"]
["Управление делами Президента Российской Федерации","През",47,47,94,154,{"$f":"E59/F59","v":0.61038961038961037},"B"]
["ФАДН России","Прав",66,65,131,154,{"$f":"E60/F60","v":0.85064935064935066},"A"]
["ФАС России","Прав",67,55,122,154,{"$f":"E61/F61","v":0.79220779220779225},"A"]
["Федеральная пробирная палата","Прав",0,0,0,154,{"$f":"E62/F62","v":0},"C"]
["ФМБА России","Прав",56,62,118,154,{"$f":"E63/F63","v":0.76623376623376627},"A"]
["ФНС России","Прав",68,69,137,154,{"$f":"E64/F64","v":0.88961038961038963},"A"]
["ФСБ России","През",0,0,0,154,{"$f":"E65/F65","v":0},"C"]
["ФСВТС России","През",58,63,121,154,{"$f":"E66/F66","v":0.7857142857142857},"A"]
["ФСИН России","През",56,44,100,154,{"$f":"E67/F67","v":0.64935064935064934},"B"]
["ФСО России","През",0,0,0,154,{"$f":"E68/F68","v":0},"C"]
["ФССП России","През",70,69,139,154,{"$f":"E69/F69","v":0.90259740259740262},"A"]
["ФСТЭК России","През",70,54,124,154,{"$f":"E70/F70","v":0.80519480519480524},"A"]
["ФТС России","Прав",70,59,129,154,{"$f":"E71/F71","v":0.83766233766233766},"A"]

{"sheet":"Коды","index":1,"n_rows":34,"n_cols":5,"rows_kept":34,"cut":false,"hidden":false,"merged":[[2,0,4,0],[6,0,8,0],[9,0,12,0],[19,0,31,0]]}
["ОЦЕНКА ОТКРЫТОСТИ ДАННЫХ ФОИВ: ОБЩАЯ ОЦЕНКА"]
["Блок оценки","Критерий","Баллы","Описание","Источник информации"]
["Доступность открытых данных","У ФОИВ есть портал или раздел открытых данных","0 - раздел не найден ни на сайте, ни через поисковик\n1 - раздел есть","Наличие у ФОИВ раздела (на официальном сайте) либо специализированного портала для публикации открытых данных.","Официальный сайт, поисковые запросы"]
[null,"Раздел открытых данных легко найти","0 - нельзя найти, не зная ссылку или не используя внешний поисковик\n1 - можно найти на сайте (более 2 кликов)\n2 - можно найти на сайте (нужно 2 или меньше кликов)","Подсчитывается число кликов от главной страницы до портала/раздела открых данных","Официальный сайт, поисковые запросы"]
[null,"Раздел открытых данных доступен","0 - раздел не открывается или не заполнен\n1 - раздел открывается и заполнен","При переходе по ссылке на раздел открытых данных этот раздел открывается и содержит данные","Раздел/портал открытых данных"]
["Содержательность данных","Наличие наборов данных, связанных с основными полномочиями, функциями и госуслугами ведомства","0 - нет\n3 - да","В списке наборов данных, публикуемых ФОИВ в качестве открытых, присутствует хотя бы один набор, связанный с его основными полномочиями, функциями и госуслугами","Раздел/портал открытых данных"]
["Обратная связь","Пользователи могут давать оценку опубликованным наборам данных","0 - нет\n1 - да","В разделе открытых данных (в основном списке наборов либо на индивидуальных страницах отдельных наборов) есть функционирующая опция оценивания набора.","Раздел/портал открытых данных"]
[null,"Пользователи могут запросить данные через специальную форму","0 - нет\n1 - да","В разделе открытых данных (в основном списке наборов либо на индивидуальных страницах отдельных наборов) есть функционирующая опция отправить запрос на публикацию данных.","Раздел/портал открытых данных"]
[null,"Пользователи могут оставлять комментарии к наборам данных","0 - нет\n1 - да","В разделе открытых данных а индивидуальных страницах отдельных наборов есть функционирующая опция оставить комментарий к набору данных.","Раздел/портал открытых данных"]
["Вывод дополнительной информации в списке наборов данных","В списке наборов данных выводится информация о формате файлов","0 - нет\n1 - да","В списке наборов данных (именно в общем списке, а не на индивидуальной странице набора) выводится информация о том, в каких форматах предоставляется каждый набор. Это позволяет пользователю быстрее и эффективнее определять, насколько тот или иной набор данных отвечает его потребностям.","Раздел/портал открытых данных"]
[null,"В списке наборов данных выводится информация о количестве скачиваний / просмотров","0 - нет\n1 - да","В списке наборов данных (именно в общем списке, а не на индивидуальной странице набора) выводится информация о том, сколько раз был скачан или просмотрен набор. Это позволяет пользователю составить представление о значимости и полезности набора среди прочих наборов.","Раздел/портал открытых данных"]
[null,"В списке наборов данных выводится информация о размере файла","0 - нет\n1 - да","В списке наборов данных (именно в общем списке, а не на индивидуальной странице набора) выводится информация о том, какого размера набор данных. Это позволяет пользователю быстрее определить, насколько использование тех или иных наборов отвечает его ожиданиям, потребностям и возможностям","Раздел/портал открытых данных"]
[null,"В списке наборов данных выводится информация о дате последнего обновления","0 - нет\n1 - да","В списке наборов данных (именно в общем списке, а не на индивидуальной странице набора) выводится информация о дате последнего обновления набора данных. Это позволяет пользователю быстрее определить актуальность предоставленных данных.","Раздел/портал открытых данных"]
["Заполненность метаданных","Раздел открытых данных содержит сведения об условиях использования данных","0 - нет\n3 - да","Представленность в разделе открытых данных сведений об условиях использования. Это может быть текстовое описание или ссылка на внешний источник, описывающий правила использования данных","Раздел/портал открытых данных"]
[]
[]
[]
["ОЦЕНКА ОТКРЫТОСТИ ДАННЫХ ФОИВ: ОЦЕНКА ОТДЕЛЬНЫХ НАБОРОВ"]
["Блок оценки","Критерий","Баллы","Описание","Источник информации"]
["Заполненность метаданных","Опубликованные данные снабжены паспортами","0 - нет\n1 - да","Наличие при опубликованных наборах паспорта данных, представляющего метаданные в соответствии с методическими рекомендациями. Во всех случаях, где идет проверка по конкретным наборам данных проверяются три произвольных набора.","Раздел/портал открытых данных"]
[null,"Паспорт содержит наименование набора данных","0 - нет\n1 - да","В соответствии с методическими рекомендациями","Паспорт  набора данных"]
[null,"Паспорт содержит краткое описание набора данных","0 - нет\n1 - да","В соответствии с методическими рекомендациями","Паспорт  набора данных"]
[null,"Паспорт содержит информацию о владельце набора данных","0 - нет\n1 - да","В соответствии с методическими рекомендациями","Паспорт  набора данных"]
[null,"Паспорт содержит ФИО ответственного лица","0 - нет\n1 - да","В соответствии с методическими рекомендациями","Паспорт  набора данных"]
[null,"Паспорт содержит телефон или электронный адрес ответственного лица","0 - нет\n1 - да","В соответствии с методическими рекомендациями","Паспорт  набора данных"]
[null,"Паспорт содержит гиперссылку (URL) на набор данных","0 - нет\n1 - да","В соответствии с методическими рекомендациями","Паспорт  набора данных"]
[null,"Паспорт содержит информацию о формате данных","0 - нет\n1 - да","Отсутствие такой информации (потенциально в сочетании с некорректным расширением публикуемого набора) может вызвать затруднения с использованием данных","Паспорт  набора данных"]
[null,"Паспорт содержит документацию (описание структуры) набора данных","0 - нет\n1 - да","В соответствии с методическими рекомендациями","Паспорт  набора данных"]
[null,"Паспорт содержит дату первой публикации набора данных","0 - нет\n1 - да","В соответствии с методическими рекомендациями","Паспорт  набора данных"]
[null,"Паспорт содержит дату последнего обновления набора данных","0 - нет\n1 - да","Наличие такой информации позволяет судить об актуальности набора","Паспорт  набора данных"]
[null,"Паспорт содержит информацию о регулярности обновления набора данных","0 - нет\n1 - да","Наличие такой информации позволяет судить об актуальности набора. Ее отсутствие принципиально препятствует использованию набора, так как его релевантность неочевидна","Паспорт  набора данных"]
[null,"По гиперссылке открывается / скачивается набор данных, соответствующий описанию в паспорте","0 - нет\n1 - да","Гиперссылка на набор данных действительно ведет к файлу, содержащему данные в соответствии с представленным описанием","Паспорт  набора данных"]
["Доступность открытых данных","Наборы данных скачиваются","0 - не скачиваются или скачиваются пустые файлы\n1 - да","Проверяются 3 произвольных набора данных. Попытка скачать не должна вызывать ошибку, скачанный файл не должен быть пустым.","Паспорт  набора данных"]
["Актуальность данных","Дата последнего обновления данных соответствует заявленной периодичности обновления","0 - нет\n5 - да","Это главный ориентир, позволяющий судить о том, насколько актуален набор данных","Паспорт  набора данных"]

{"sheet":"Оценка_Раунд1","index":2,"n_rows":71,"n_cols":64,"rows_kept":71,"cut":false,"hidden":false,"merged":[]}
["Ведомство","Сайт","Раздел ОД","Раздел легко найти","Раздел ОД доступен","Есть профильные наборы","Есть лицензия","В списке выведен формат","В списке выведено число просмотров / скачиваний","В списке выведен размер файла","В списке выведена дата обновления","Можно оценивать наборы данных","Можно запросить набор данных через форму","Можно оставить комментарий к наборам","Проверочный набор 1","Есть паспорт","В паспорте есть название набора","В паспорте есть описание","В паспорте указан владелец","В паспорте указано ответственное лицо","В паспорте указаны контакты","В паспорте есть гиперссылка на набор","В паспорте указан формат данных","В паспорте есть описание структуры","В паспорте дата есть первой публикации","В паспорте дата последнего обновления","В паспорте есть дата актуальности либо периодичность обновления","Набор актуален","Набор нормально скачивается","Набор открывается и соответствует описанию","Проверочный набор 2","Есть паспорт","В паспорте есть название набора","В паспорте есть описание","В паспорте указан владелец","В паспорте указано ответственное лицо","В паспорте указаны контакты","В паспорте есть гиперссылка на набор","В паспорте указан формат данных","В паспорте есть описание структуры","В паспорте дата есть первой публикации","В паспорте дата последнего обновления","В паспорте есть дата актуальности либо периодичность обновления","Набор актуален","Набор нормально скачивается","Набор открывается и соответствует описанию","Проверочный набор 3","Есть паспорт","В паспорте есть название набора","В паспорте есть описание","В паспорте указан владелец","В паспорте указано ответственное лицо","В паспорте указаны контакты","В паспорте есть гиперссылка на набор","В паспорте указан формат данных","В паспорте есть описание структуры","В паспорте дата есть первой публикации","В паспорте дата последнего обновления","В паспорте есть дата актуальности либо периодичность обновления","Набор актуален","Набор нормально скачивается","Набор открывается и соответствует описанию","Общий балл","Максимальный балл"]
["Главное управление специальных программ Президента Российской Федерации (ГУСП)","http://www.gusp.gov.ru/",{"$nulls":60},0,77]
["Государственная фельдъегерская служба Российской Федерации (ГФС России)","http://gfs.gov.ru/","https://gfs.gov.ru/opendata/",2,1,0,3,1,0,0,0,0,0,0,"https://gfs.gov.ru/opendata/7709133821-od-fggs",1,1,1,1,1,1,1,1,1,1,1,1,5,1,1,"https://gfs.gov.ru/opendata/7709133821-od-to",1,1,1,1,1,1,1,1,1,1,1,1,5,1,1,"https://gfs.gov.ru/opendata/7709133821-od-po",1,1,1,1,1,1,1,1,1,1,1,1,5,1,1,64,77]
["Казначейство России","https://roskazna.gov.ru/","https://roskazna.gov.ru/opendata/",2,1,3,3,1,1,0,1,1,1,0,"https://roskazna.gov.ru/opendata/7710568760-resultsofextauditoftheFederalTreasury/",1,1,1,1,1,1,1,1,1,1,1,1,5,1,1,"https://roskazna.gov.ru/opendata/7710568760-textsofprovisionsoflegalactsFederalTreasury/",1,1,1,1,1,1,1,1,0,1,1,1,5,1,1,"https://roskazna.gov.ru/opendata/7710568760-informaciyapostatistikefinanso/",1,1,1,1,1,1,1,1,1,1,1,1,5,1,1,70,77]
["МВД России","http://mvd.gov.ru","https://мвд.рф/открытые-данные",2,1,3,3,1,1,0,1,0,0,0,"https://мвд.рф/открытые-данные/7727739372-MVDGIAC35",0,1,1,1,1,1,1,1,1,1,1,1,5,1,1,"https://мвд.рф/открытые-данные/7727739372-MVDGIAC33",1,1,1,1,1,1,1,1,1,1,1,1,5,1,1,"https://мвд.рф/открытые-данные/7727739372-MVDGIAC312",1,1,1,1,1,1,1,1,1,1,1,1,5,1,1,68,77]
["МИД России","http://www.mid.ru/","https://www.mid.ru/diverse/-/asset_publisher/8bWtTfQKqtaS/content/id/680111",2,1,0,3,0,0,0,0,0,0,0,"https://www.mid.ru/web/guest/diverse/-/asset_publisher/8bWtTfQKqtaS/content/id/679901",1,1,1,1,1,1,1,1,1,1,1,1,5,1,1,"https://www.mid.ru/web/guest/diverse/-/asset_publisher/8bWtTfQKqtaS/content/id/679917",1,1,1,1,1,1,1,1,1,1,1,1,5,1,1,"https://www.mid.ru/web/guest/diverse/-/asset_publisher/8bWtTfQKqtaS/content/id/679930",1,1,1,1,1,1,1,1,1,1,1,1,5,1,1,63,77]
["Минвостокразвития России","http://minvr.gov.ru/","https://minvr.gov.ru/opendata/",2,1,3,3,1,1,1,1,0,1,0,"https://minvr.gov.ru/opendata/2721194275-informatsiyaobobrashcheniyakh/",1,1,1,1,1,1,1,1,1,1,1,0,0,1,1,"https://minvr.gov.ru/opendata/2721194275-listofstateservices/",1,1,1,1,1,1,1,1,1,1,1,1,5,1,1,"https://minvr.gov.ru/opendata/2721194275-organizedevents/",1,1,1,1,1,1,1,1,1,1,1,1,5,1,1,65,77]
["Минздрав России","http://minzdrav.gov.ru/","https://minzdrav.gov.ru/opendata",0,1,3,3,1,1,0,0,0,0,0,"https://minzdrav.gov.ru/opendata/7707778246-normpotrebproduct",1,1,1,1,1,1,1,1,1,1,1,1,0,1,1,"https://minzdrav.gov.ru/opendata/7707778246-reestrklinicheskihissledovanii",1,1,1,1,1,1,1,1,1,1,1,1,0,1,1,"https://minzdrav.gov.ru/opendata/7707778246-srednyayadlitelnostprebyvaniyapacientanakojke",1,1,1,1,1,1,1,1,1,1,1,1,0,1,1,51,77]
["Минкультуры России","http://culture.gov.ru/","https://opendata.mkrf.ru/opendata",1,1,3,3,1,1,0,0,0,0,0,"https://opendata.mkrf.ru/opendata/7705851331-heritage_lost_objects",1,1,1,1,1,1,1,1,1,1,1,1,5,1,1,"https://opendata.mkrf.ru/opendata/7705851331-copyright_accredited_organizations",1,1,1,1,1,1,1,1,1,1,1,1,5,1,1,"https://opendata.mkrf.ru/opendata/7705851331-archeology_list",1,1,1,1,1,1,1,1,1,1,1,1,5,1,1,67,77]
["Минобороны России","http://mil.ru/opendata.htm","http://mil.ru/opendata.htm",0,0,{"$nulls":57},0,77]
["Минобрнауки России","http://www.minobrnauki.gov.ru","https://www.minobrnauki.gov.ru/opendata/",2,1,3,3,1,1,0,1,0,1,1,"https://www.minobrnauki.gov.ru/opendata/9710062939-svedeniya-ob-organizatsiyakh-dopolnitelnogo-professionalnogo-obrazovaniya",1,1,1,1,0,1,1,1,1,1,1,1,5,1,1,"https://www.minobrnauki.gov.ru/opendata/9710062939-informatsiya-o-rezultatakh-planovykh-i-vneplanovykh-proverok-provedennykh-ministerstvom-nauki-i-vyssh2020",1,1,1,1,1,1,1,1,1,1,1,1,5,1,1,"https://www.minobrnauki.gov.ru/opendata/9710062939-svedeniya-o-chislennosti-professorsko-prepodavatelskogo-sostava-obrazovatelnykh-organizatsiy-osushch",1,1,1,1,0,1,1,1,1,1,1,1,5,1,1,69,77]
["Минприроды России","http://www.mnr.gov.ru/","http://www.mnr.gov.ru/opendata/",2,1,3,3,1,0,1,0,1,1,1,"http://www.mnr.gov.ru/opendata/7710256289_confiscated_hunting_resources",1,1,1,1,1,1,1,1,1,1,1,1,5,1,1,"http://www.mnr.gov.ru/opendata/7710256289-objects_of_accumulated_environmental_damage",1,1,1,1,1,1,1,1,1,1,1,1,5,1,1,"http://www.mnr.gov.ru/opendata/7710256289-regperopi",1,1,1,1,1,1,1,1,1,1,1,1,0,1,1,66,77]
["Минпромторг России","http://www.minpromtorg.gov.ru/","https://www.minpromtorg.gov.ru/opendata/",2,1,3,3,1,1,1,1,1,1,0,"https://www.minpromtorg.gov.ru/opendata/7705596339-supportmeasuresforeigneconomicactivity/",1,1,1,1,1,1,1,1,1,1,1,1,0,1,0,"https://www.minpromtorg.gov.ru/opendata/7705596339-ouhoshchuche/",1,1,1,1,1,1,1,1,1,1,1,1,0,1,1,"https://www.minpromtorg.gov.ru/opendata/7705596339-ais_vti_license/",1,1,1,1,1,1,1,1,1,1,1,1,0,1,1,56,77]
["Минпросвещения России","https://edu.gov.ru","https://opendata.edu.gov.ru/opendata/",2,1,3,3,1,1,0,0,0,0,0,"https://opendata.edu.gov.ru/opendata/7707418081-BankDeti",1,1,1,1,1,1,1,1,1,1,1,1,5,1,1,"https://opendata.edu.gov.ru/opendata/7707418081-ContinfoRO",1,1,1,1,1,1,1,1,1,1,1,1,5,1,1,"https://opendata.edu.gov.ru/opendata/7707418081-ROIV",1,1,1,1,1,1,1,1,1,1,1,1,5,1,1,68,77]
["Минсельхоз России","http://www.mcx.gov.ru/","https://mcx.gov.ru/activity/open-data/",2,1,3,3,1,1,0,1,1,0,1,"http://opendata.mcx.ru/opendata/7708075454-plemennoyregistr",1,1,1,1,1,1,1,1,1,1,1,1,0,1,1,"http://opendata.mcx.ru/opendata/7708075454-boleznigivotnih",1,1,1,1,1,1,1,1,1,1,1,1,0,1,1,"http://opendata.mcx.ru/opendata/7708075454-semenovodcheskiekhozyaystva",1,1,1,1,1,1,1,1,1,1,1,1,0,1,1,56,77]
["Минспорт России","http://www.minsport.gov.ru","https://minsport.gov.ru/opendata/",0,1,3,3,0,0,0,0,0,0,0,"https://minsport.gov.ru/opendata/192/29869/",1,1,1,1,1,1,1,1,1,1,0,1,0,1,1,"https://minsport.gov.ru/opendata/192/7192/",1,1,1,1,1,1,1,1,1,1,1,1,0,1,1,"https://minsport.gov.ru/opendata/192/7194/",1,1,1,1,1,1,1,1,1,1,1,1,0,1,1,48,77]
["Минстрой России","http://www.minstroyrf.gov.ru/","http://www.minstroyrf.gov.ru/opendata/",2,1,3,3,1,1,0,1,0,1,1,"http://www.minstroyrf.gov.ru/opendata/7707780887-resultsappeals/",1,1,1,1,1,1,1,1,1,1,1,1,0,1,1,"http://www.minstroyrf.gov.ru/opendata/7707780887-watersupply/",1,1,1,1,1,1,1,1,1,1,1,1,5,1,1,"http://www.minstroyrf.gov.ru/opendata/7707780887-specialtechnicalconditions/",1,1,1,1,1,1,1,1,1,1,1,1,5,1,1,66,77]
["Минтранс России","http://mintrans.gov.ru/","https://mintrans.gov.ru/opendata/",1,1,3,3,1,1,0,0,1,0,1,"https://mintrans.gov.ru/opendata/7705851331-reestrautorf",1,1,1,1,1,1,1,1,1,1,1,1,0,1,1,"https://mintrans.gov.ru/opendata/7705851331-railroadclosing",1,1,1,1,1,1,1,1,1,1,1,1,0,1,1,"https://mintrans.gov.ru/opendata/7705851331-schedulemzd",1,1,1,1,1,1,1,1,1,1,1,1,0,1,1,54,77]
["Минтруд России","http://mintrud.gov.ru","https://mintrud.gov.ru/opendata",2,1,3,3,1,1,0,0,1,0,1,"https://mintrud.gov.ru/opendata/7710914971-pensii_sofinans",1,1,1,1,1,1,1,1,1,1,1,1,5,1,1,"https://mintrud.gov.ru/opendata/7710914971-razmeri_posobiy_materinstvo",1,1,1,1,1,1,1,1,1,1,1,1,5,1,1,"https://mintrud.gov.ru/opendata/7710914971-experts_SOUT",1,1,1,1,1,1,1,1,1,1,1,1,0,1,1,65,77]
["Минфин России","http://minfin.gov.ru/","https://minfin.gov.ru/ru/opendata/",0,1,3,3,1,1,1,1,1,1,0,"https://minfin.gov.ru/opendata/7710168360-ReserveFund/",1,1,1,1,1,1,1,1,1,1,1,1,5,1,1,"https://minfin.gov.ru/opendata/7710168360-DiamondTools/",1,1,1,1,1,1,1,1,1,1,1,1,5,1,1,"https://minfin.gov.ru/OpenData/7710168360-affinage_org/",1,1,1,1,1,1,1,1,1,1,1,1,5,1,1,70,77]
["Минцифры России","https://digital.gov.ru/ru/","https://digital.gov.ru/opendata/",2,1,3,0,1,1,0,0,0,1,0,"https://digital.gov.ru/opendata/7710474375-proniknpodvsvyaz/",1,1,1,1,1,1,1,1,1,1,1,1,5,1,1,"https://digital.gov.ru/opendata/7710474375-telefplotn/",1,1,1,1,1,1,1,1,1,1,1,1,5,1,1,"https://digital.gov.ru/opendata/7710474375-investiosnfond/",1,1,1,1,1,1,1,1,1,1,1,1,5,1,1,66,77]
["Минэкономразвития России","https://www.economy.gov.ru/","https://www.economy.gov.ru/material/open_data/",2,1,0,3,0,0,0,1,1,1,1,"https://data.gov.ru/opendata/7710349494-govprogramreport30",1,1,1,1,1,1,1,1,1,1,1,1,5,1,1,"https://data.gov.ru/opendata/7710349494-govprogramreport22",1,1,1,1,1,1,1,1,1,1,1,1,5,1,1,"https://data.gov.ru/opendata/7710349494-govprogramreport36",1,1,1,1,1,1,1,1,1,1,1,1,5,1,1,67,77]
["Минэнерго России","https://minenergo.gov.ru/","https://minenergo.gov.ru/opendata",2,1,3,3,1,1,0,0,0,1,1,"https://minenergo.gov.ru/opendata/7705847529-vyvodobektovizekspluatatsii",1,1,1,1,1,1,1,1,1,1,1,1,5,1,1,"https://minenergo.gov.ru/opendata/7705847529-otchetyobispolneniiinvestprogramm",1,1,1,1,1,1,1,1,1,1,1,1,5,1,1,"https://minenergo.gov.ru/opendata/7705847529-register-transmission-facilities",1,1,1,1,1,1,1,1,1,1,1,1,5,1,1,70,77]
["Минюст России","https://minjust.gov.ru/ru/","https://minjust.gov.ru/ru/pages/opendata/",2,1,3,3,1,0,0,0,0,0,0,"https://data.gov.ru/opendata/7707211418-zags",1,1,1,1,1,1,1,1,1,1,1,1,5,1,1,"https://data.gov.ru/opendata/7707211418-reestradvokat",1,1,1,1,1,1,1,1,1,1,1,1,5,1,1,"https://data.gov.ru/opendata/7707211418-sovernotardeystviy",1,1,1,1,1,1,1,1,1,1,1,1,5,1,1,67,77]
["МЧС России","http://www.mchs.gov.ru/","https://www.mchs.gov.ru/ministerstvo/otkrytoe-ministerstvo/otkrytye-dannye",1,1,3,3,1,1,1,1,1,0,0,"https://www.mchs.gov.ru/ministerstvo/otkrytoe-ministerstvo/otkrytye-dannye/7707034952-OilSpill",1,1,1,1,0,1,1,1,1,1,1,0,0,1,1,"https://www.mchs.gov.ru/ministerstvo/otkrytoe-ministerstvo/otkrytye-dannye/7707034952-StateControl",1,1,1,1,0,1,1,1,1,1,1,0,0,1,1,"https://www.mchs.gov.ru/ministerstvo/otkrytoe-ministerstvo/otkrytye-dannye/7707034952-FireSafetyAudit",1,1,1,1,0,1,1,1,1,1,1,0,0,1,1,49,77]
["Росавиация","http://favt.gov.ru/","http://favt.gov.ru/opendata/",2,1,3,3,1,1,0,0,1,1,1,"http://favt.gov.ru/opendata/7714549744-reestrakkredorg/",1,1,1,1,1,1,1,1,1,1,1,1,5,1,1,"http://favt.gov.ru/opendata/7714549744-reestrattestorg/",1,1,1,1,1,1,1,1,1,1,1,1,5,1,1,"http://favt.gov.ru/opendata/7714549744-statkolsudga/",1,1,1,1,1,1,1,1,1,1,1,1,5,1,1,71,77]
["Росавтодор","http://rosavtodor.gov.ru/","https://rosavtodor.gov.ru/opendata",2,1,3,3,1,1,0,1,1,1,1,"https://rosavtodor.gov.ru/opendata/7717509757-fkuuprdorkavkaz",1,1,1,1,1,1,1,1,1,1,1,1,0,1,1,"https://rosavtodor.gov.ru/opendata/7717509757-meroprfcpkrim",1,1,1,1,1,1,1,1,1,1,1,1,0,1,1,"https://rosavtodor.gov.ru/opendata/7717509757-reestrkategor",1,1,1,1,1,1,1,1,1,1,1,1,0,1,1,57,77]
["Росаккредитация","http://www.fsa.gov.ru/","https://fsa.gov.ru/opendata/",1,1,3,3,1,0,0,0,1,1,1,"https://fsa.gov.ru/opendata/7736638268-nchral_os/",1,1,1,1,0,1,1,1,1,1,1,1,0,1,1,"https://fsa.gov.ru/opendata/7736638268-expert/",1,1,1,1,0,1,1,1,1,1,1,1,0,1,1,"https://fsa.gov.ru/opendata/7736638268-statkol/",1,1,1,1,0,1,0,0,0,1,1,1,0,0,0,46,77]
["Росалкогольрегулирование","http://fsrar.gov.ru/","http://fsrar.gov.ru/opendata",2,1,3,3,0,1,0,0,0,0,1,"https://data.gov.ru/opendata/7710747640-zpoap",1,1,1,1,1,1,1,0,1,1,1,1,5,1,1,"https://data.gov.ru/opendata/7710747640-plan",1,1,1,1,1,1,1,0,1,1,1,1,5,1,1,"https://data.gov.ru/opendata/7710747640-pikvod",1,1,1,1,1,1,1,1,1,1,1,1,5,1,1,66,77]
["Росархив","http://archives.gov.ru","http://archives.gov.ru/opendata",2,1,3,3,1,1,0,0,0,1,0,"http://archives.gov.ru/opendata/7710474216-statistika.shtml",1,1,1,1,1,1,1,1,1,1,1,1,0,1,1,"http://archives.gov.ru/opendata/7710474216-archiveklassifikatorfiz.shtml",1,1,1,1,1,1,1,1,1,1,1,1,0,1,1,"http://archives.gov.ru/opendata/7710474216-keytask.shtml",1,1,1,1,1,1,1,1,1,1,0,1,0,1,1,53,77]
["Росводресурсы","https://voda.gov.ru/","https://voda.gov.ru/opendata/index.php",2,1,3,3,1,0,0,0,0,0,1,"https://voda.gov.ru/opendata/7728513882-2_5_gvr/",1,1,1,1,1,1,1,1,1,1,1,1,5,1,1,"https://voda.gov.ru/opendata/7728513882-2_6_gvr/",1,1,1,1,1,1,1,1,1,1,1,1,5,1,1,"https://voda.gov.ru/opendata/7728513882-1_5gvr/",1,1,1,1,1,1,1,1,1,1,1,1,5,1,1,68,77]
["Росгвардия","http://rosguard.gov.ru","https://rosguard.gov.ru/opendata",2,1,3,3,1,0,0,1,0,1,0,"https://rosguard.gov.ru/opendata/7722377866-zadachi",1,1,1,1,0,0,1,1,1,1,1,1,5,1,1,"https://rosguard.gov.ru/opendata/7722377866-choop",1,1,1,1,0,0,1,1,1,1,1,1,5,1,1,"https://rosguard.gov.ru/opendata/7722377866-tgso",1,1,1,1,0,0,1,1,1,1,1,1,5,1,1,63,77]
["Росгидромет","http://meteorf.gov.ru/","http://meteorf.gov.ru/opendata/",2,1,3,3,1,0,0,0,0,1,1,"http://meteorf.gov.ru/opendata/7703092752-aerol/",1,1,1,1,1,1,1,1,1,1,0,1,0,1,1,"http://meteorf.gov.ru/opendata/7703092752-climat/",1,1,1,1,1,1,1,1,1,1,1,1,0,1,1,"http://meteorf.gov.ru/opendata/7703092752-pollut/",1,1,1,1,1,1,1,1,1,1,0,1,0,1,1,52,77]
["Росжелдор","http://rlw.gov.ru/","http://www.rlw.gov.ru/opendata",2,1,3,3,1,0,0,1,1,0,1,"http://www.rlw.gov.ru/opendata/7708525167-registrpassvagon",1,1,1,1,1,1,1,1,1,1,1,1,0,1,1,"http://www.rlw.gov.ru/opendata/7708525167-reestrattestatorg",1,1,1,1,1,1,1,1,1,1,1,1,5,1,1,"http://www.rlw.gov.ru/opendata/7708525167-transpsredstvavreestrtits",1,1,1,1,1,1,1,1,1,1,1,1,5,1,1,65,77]
["Росздравнадзор","http://roszdravnadzor.gov.ru","https://roszdravnadzor.gov.ru/opendata",2,1,3,3,1,0,0,0,1,1,0,"https://roszdravnadzor.gov.ru/opendata/7710537160-stat103_licfarm",1,1,1,1,1,1,1,1,1,1,1,1,5,1,1,"https://roszdravnadzor.gov.ru/opendata/7710537160-services",1,1,1,1,1,1,1,1,1,1,1,1,5,1,1,"https://roszdravnadzor.gov.ru/opendata/7710537160-drugs_destruction",1,1,1,1,1,1,1,1,1,1,1,1,5,1,1,69,77]
["Росимущество","http://rosim.gov.ru/","https://rosim.gov.ru/opendata",2,1,3,3,1,1,0,0,1,0,1,"https://rosim.gov.ru/opendata/7710723134-rfi_1_1_land",1,1,1,1,1,1,1,1,1,1,1,1,5,1,1,"https://rosim.gov.ru/opendata/7710723134-rfi_2_3_movables",1,1,1,1,1,1,1,1,1,1,1,1,5,1,1,"https://rosim.gov.ru/opendata/7710723134-stat_plan",1,1,1,1,1,1,1,1,1,1,1,1,5,1,1,70,77]
["Роскомнадзор","https://rkn.gov.ru/","https://rkn.gov.ru/opendata/stat/",2,1,3,0,0,1,0,0,1,1,1,"https://rkn.gov.ru/opendata/7705846236-BorderTelecommunications/",1,1,1,1,1,1,1,1,1,1,1,0,0,1,1,"https://rkn.gov.ru/opendata/7705846236-OperatorsPD/",1,1,1,1,1,1,1,1,1,1,1,0,0,1,1,"https://rkn.gov.ru/opendata/7705846236-communicationInfrastructureRF/",1,1,1,1,1,1,1,1,1,1,1,0,0,1,1,49,77]
["Рослесхоз","http://rosleshoz.gov.ru/","http://rosleshoz.gov.ru/opendata",2,1,3,3,1,0,0,1,0,0,0,"http://rosleshoz.gov.ru/opendata/7705598840-RegisterPlants",1,1,1,1,1,1,1,1,1,1,1,1,0,1,1,"http://rosleshoz.gov.ru/opendata/7705598840-ReforestationArea",1,1,1,1,1,1,1,1,1,1,1,1,0,1,1,"http://rosleshoz.gov.ru/opendata/7705598840-AerialWorks",1,1,1,1,1,1,1,1,1,1,1,1,5,1,1,58,77]
["Росмолодёжь","http://fadm.gov.ru","https://fadm.gov.ru/opendata",2,1,0,3,1,1,1,1,1,1,0,"https://fadm.gov.ru/opendata/7703672351-appealstat",1,1,1,1,0,0,1,1,1,1,1,1,5,1,1,"https://fadm.gov.ru/opendata/7703672351-events",1,1,1,1,0,0,1,1,1,1,1,1,5,1,1,"https://fadm.gov.ru/opendata/7703672351-regionorgs",1,1,1,1,0,0,1,1,1,1,1,1,5,1,1,63,77]
["Росморречфлот","http://morflot.gov.ru/","http://morflot.gov.ru/glavnaya/otkryitoe_agentstvo/opendata.html",2,1,3,3,1,1,0,0,0,1,0,"http://opendata.morflot.ru/7707516988-BUNKERT",1,1,1,1,1,1,1,1,1,1,1,1,0,1,1,"http://opendata.morflot.ru/7707516988-FakticheskigodniesudaVVT",1,1,1,1,1,1,1,1,1,1,1,1,0,1,1,"http://opendata.morflot.ru/7707516988-ReestrVidannihSvidetelstv",1,1,1,0,0,0,1,1,0,1,1,0,0,1,1,49,77]
["Роснедра","http://www.rosnedra.gov.ru/","https://www.rosnedra.gov.ru/opendata/",2,1,3,3,1,1,1,1,0,1,1,"https://www.rosnedra.gov.ru/opendata/7703518529-perechentpi",1,1,1,1,1,1,1,1,1,1,1,1,5,1,1,"https://www.rosnedra.gov.ru/opendata/7703518529-DepositsGISAtlas",1,1,0,0,0,0,1,1,1,1,1,0,0,1,1,"https://www.rosnedra.gov.ru/opendata/7703518529-perechnilist",1,1,1,1,1,1,1,1,1,1,1,0,0,1,1,56,77]
["Рособрнадзор","http://obrnadzor.gov.ru/","http://obrnadzor.gov.ru/otkrytoe-pravitelstvo/opendata/",2,1,3,3,0,1,0,0,0,0,0,"http://obrnadzor.gov.ru/otkrytoe-pravitelstvo/opendata/7701537808-statlic/",1,1,1,1,1,1,1,1,1,1,1,1,0,1,1,"http://obrnadzor.gov.ru/otkrytoe-pravitelstvo/opendata/7701537808-legalacts/",1,1,1,1,1,1,1,1,1,1,1,1,5,1,1,"http://obrnadzor.gov.ru/otkrytoe-pravitelstvo/opendata/7701537808-budget/",1,1,1,1,1,1,1,1,0,1,1,1,0,1,1,56,77]
["Роспатент","https://rospatent.gov.ru/","https://rospatent.gov.ru/opendata",1,1,3,3,1,1,1,1,1,1,0,"https://rospatent.gov.ru/opendata/7730176088-patpov",1,1,1,1,1,1,1,1,1,1,1,1,0,1,1,"https://rospatent.gov.ru/opendata/7730176088-iz",1,1,1,1,1,1,1,1,1,1,1,1,0,1,1,"https://rospatent.gov.ru/opendata/7730176088-tims",1,1,1,1,1,1,1,1,1,1,1,1,0,1,1,56,77]
["Роспотребнадзор","http://www.rospotrebnadzor.ru","http://opendata.rospotrebnadzor.ru/",2,1,3,3,1,0,0,0,0,0,0,"http://opendata.rospotrebnadzor.ru/7707515984-statvaccine/",1,1,1,1,1,1,1,1,1,1,1,1,5,1,1,"http://opendata.rospotrebnadzor.ru/7707515984-listservice/",1,1,1,1,1,1,1,1,1,1,1,1,5,1,1,"http://opendata.rospotrebnadzor.ru/7707515984-listlaw_control/",1,1,1,1,1,1,1,1,1,1,1,1,5,1,1,67,77]
["Росприроднадзор","https://rpn.gov.ru/","https://rpn.gov.ru/opendata/",2,1,3,3,0,1,0,1,0,0,0,"https://rpn.gov.ru/opendata/7703381225-reestrsoderjanie",1,1,1,1,1,1,1,1,1,1,1,1,5,1,1,"https://rpn.gov.ru/opendata/7703381225-reestrdob",1,1,1,1,1,1,1,1,1,1,1,1,5,1,1,"https://rpn.gov.ru/opendata/7703381225-pereselenie",1,1,1,1,1,1,1,1,1,1,1,1,5,1,1,68,77]
["Росреестр","https://rosreestr.gov.ru/site/","https://rosreestr.gov.ru/wps/portal/cc_ib_opendata",2,1,3,3,1,0,0,0,0,0,0,"https://rosreestr.gov.ru/wps/portal/p/cc_ib_portal_services/cc_ib_opendata2/!ut/p/c5/hU69DoIwGHyk76pAWRswLSBYlERgIQ0hSMKPgzHx7a26uKB34_1STZazuQ-9uQ3LbEYqqfYaMFcw5SBCyH0IscsKncCCW73ymkjGWiWSQeZ7IArCE9OCAxp_0ufX3pfjkG5d6wiKOOXHDXzno__qf-dXIECZWqaOKqr56g_pUjV2vWkfdJ1KDPqSPwHqEtmb/dl3/d3/L0lJSklna21DU1EhIS9JRGpBQU15QUJFUkNKRXFnLzRGR2dzbzBWdnphOUlBOW9JQSEhLzdfMDE1QTFINDBJMEQ3ODBBQUVOVFBLMDAwRzUvNUxIME41Mzg0MDAxMS9zYS5ydS5mY2NsYW5kLmlibXBvcnRhbC5zcHJpbmcucG9ydGxldC5kaXNwYXRjaGVyLkRpc3BhdGNoZXJBY3Rpb25FdmVudC1NVUxUSVBBUlQ!/?PC_7_015A1H40I0D780AAENTPK000G5000000_ru.fccland.ibmportal.spring.portlet.handler.BeanNameParameterHandlerMapping-PATH=%2fShowInfoblockPageController&param_infoblock_document_path=LICENSE.htm",1,1,1,1,1,1,1,1,1,1,1,1,5,1,1,"https://rosreestr.gov.ru/wps/portal/p/cc_ib_portal_services/cc_ib_opendata2/!ut/p/c5/hU69DoIwGHyk76pAWRswLSBYlERgIQ0hSMKPgzHx7a26uKB34_1STZazuQ-9uQ3LbEYqqfYaMFcw5SBCyH0IscsKncCCW73ymkjGWiWSQeZ7IArCE9OCAxp_0ufX3pfjkG5d6wiKOOXHDXzno__qf-dXIECZWqaOKqr56g_pUjV2vWkfdJ1KDPqSPwHqEtmb/dl3/d3/L0lJSklna21DU1EhIS9JRGpBQU15QUJFUkNKRXFnLzRGR2dzbzBWdnphOUlBOW9JQSEhLzdfMDE1QTFINDBJMEQ3ODBBQUVOVFBLMDAwRzUvNUxIME41Mzg0MDAxMS9zYS5ydS5mY2NsYW5kLmlibXBvcnRhbC5zcHJpbmcucG9ydGxldC5kaXNwYXRjaGVyLkRpc3BhdGNoZXJBY3Rpb25FdmVudC1NVUxUSVBBUlQ!/?PC_7_015A1H40I0D780AAENTPK000G5000000_ru.fccland.ibmportal.spring.portlet.handler.BeanNameParameterHandlerMapping-PATH=%2fShowInfoblockPageController&param_infoblock_document_path=STAT%20OTCHET.htm",1,1,1,1,1,1,1,1,1,1,1,1,5,1,1,"https://rosreestr.gov.ru/wps/portal/p/cc_ib_portal_services/cc_ib_opendata2/!ut/p/c5/hU69DoIwGHyk76pAWRswLSBYlERgIQ0hSMKPgzHx7a26uKB34_1STZazuQ-9uQ3LbEYqqfYaMFcw5SBCyH0IscsKncCCW73ymkjGWiWSQeZ7IArCE9OCAxp_0ufX3pfjkG5d6wiKOOXHDXzno__qf-dXIECZWqaOKqr56g_pUjV2vWkfdJ1KDPqSPwHqEtmb/dl3/d3/L0lJSklna21DU1EhIS9JRGpBQU15QUJFUkNKRXFnLzRGR2dzbzBWdnphOUlBOW9JQSEhLzdfMDE1QTFINDBJMEQ3ODBBQUVOVFBLMDAwRzUvNUxIME41Mzg0MDAxMS9zYS5ydS5mY2NsYW5kLmlibXBvcnRhbC5zcHJpbmcucG9ydGxldC5kaXNwYXRjaGVyLkRpc3BhdGNoZXJBY3Rpb25FdmVudC1NVUxUSVBBUlQ!/?PC_7_015A1H40I0D780AAENTPK000G5000000_ru.fccland.ibmportal.spring.portlet.handler.BeanNameParameterHandlerMapping-PATH=%2fShowInfoblockPageController&param_infoblock_document_path=SVED%20SRO%20O.htm",1,1,1,1,1,1,1,1,1,1,1,1,5,1,1,67,77]
["Росрезерв","http://rosrezerv.gov.ru/","https://rosrezerv.gov.ru/opendata/",2,1,0,3,1,0,0,0,0,0,0,"https://rosrezerv.gov.ru/opendata/7710474294-perechgrmatcennostrealzakrkon",1,1,1,1,1,1,1,1,1,1,1,1,5,1,1,"https://rosrezerv.gov.ru/opendata/7722077260-reestrrukovodniiph",1,1,1,1,1,1,1,1,1,1,1,1,0,1,1,"https://rosrezerv.gov.ru/opendata/7710474294-perecheninfosistemfoiv",1,1,1,1,1,1,1,1,1,1,1,1,0,1,1,54,77]
["Росрыболовство","http://www.fish.gov.ru/","http://www.fish.gov.ru/opendata",2,1,0,3,0,0,0,0,0,0,0,"http://www.fish.gov.ru/opendata/7702679523-statistika",1,1,1,1,1,1,1,1,1,1,1,1,0,1,1,"http://www.fish.gov.ru/opendata/7702679523-perechentozr",1,1,1,1,1,1,1,1,1,1,1,1,5,1,1,"http://www.fish.gov.ru/opendata/7702679523-subpolntu",1,1,1,1,1,1,1,1,1,1,0,1,5,1,1,57,77]
["Россельхознадзор","http://fsvps.gov.ru/","https://fsvps.gov.ru/opendata",2,1,3,3,1,0,1,1,0,0,0,"https://data.gov.ru/opendata/7708523530-byudzhet",1,1,1,1,1,1,1,1,1,1,0,1,0,1,1,"https://data.gov.ru/opendata/7708523530-svh",1,1,1,1,1,1,1,1,1,1,1,1,0,1,1,"https://data.gov.ru/opendata/7708523530-gosreestrleksredstv",1,1,1,1,1,1,1,1,1,1,1,1,0,1,1,53,77]
["Россотрудничество","http://rs.gov.ru","https://rs.gov.ru/opendata",2,1,0,3,1,1,1,1,0,1,0,"https://rs.gov.ru/opendata/7704706758-obektinedvigimosti/data",0,0,0,0,0,0,0,0,0,0,0,0,0,0,0,{"$nulls":32},11,77]
["Росстандарт","http://rst.gov.ru","https://www.rst.gov.ru/portal/gost/home/systems/opendatapp",2,1,3,3,1,0,0,0,1,1,1,"https://www.rst.gov.ru/opendata/7706406291-memoranda",1,1,1,1,1,1,1,1,1,1,1,1,5,0,0,"https://www.rst.gov.ru/opendata/7706406291-recallcampaigns",1,1,1,1,1,1,1,1,1,1,1,1,5,0,0,"https://www.rst.gov.ru/opendata/7706406291-nssregistry",1,1,1,1,0,1,1,1,1,1,1,1,0,0,0,58,77]
["Росстат","https://rosstat.gov.ru/","https://rosstat.gov.ru/folder/12793",2,1,3,3,1,0,0,1,1,1,1,"https://rosstat.gov.ru/opendata/7708234640-7708234640-dataset2021",1,1,1,1,1,1,1,1,1,1,1,1,5,1,1,"https://rosstat.gov.ru/opendata/7708234640-ca1502035",1,1,1,1,1,1,1,1,1,1,1,1,5,1,1,"https://rosstat.gov.ru/opendata/7708234640-ca1502073",1,1,1,1,1,1,1,1,1,1,1,1,5,1,1,71,77]
["Ростехнадзор","http://gosnadzor.gov.ru/","http://gosnadzor.gov.ru/opendata/",2,1,3,3,0,0,0,0,0,0,0,"http://gosnadzor.gov.ru/opendata/7709561778-stnadzor/index.php",1,1,1,1,1,1,1,1,1,1,1,1,5,1,1,"http://gosnadzor.gov.ru/opendata/7709561778-stlic/index_od.php",1,1,1,1,1,1,1,1,1,1,1,1,5,1,1,"http://gosnadzor.gov.ru/opendata/7709561778-sro/index_od.php",1,1,1,1,1,1,1,1,1,1,1,1,5,1,1,66,77]
["Ространснадзор","https://rostransnadzor.gov.ru/","https://rostransnadzor.gov.ru/opendata",1,1,0,3,0,0,0,1,1,1,1,"https://rostransnadzor.gov.ru/opendata/7714549751-statinfo",1,1,1,1,1,1,1,1,1,1,1,1,5,1,1,"https://rostransnadzor.gov.ru/opendata/7714549751-reestrlicenziy",1,1,1,1,0,0,1,1,1,1,1,1,5,1,1,"https://rostransnadzor.gov.ru/opendata/7714549751-reestrinformsystem",1,1,1,1,1,1,1,1,1,1,1,1,5,1,1,64,77]
["Роструд","https://rostrud.gov.ru/","https://rostrud.gov.ru/opendata/",2,1,3,3,1,1,0,0,1,1,0,"https://rostrud.gov.ru/opendata/7712345678-vyplatyberem",1,1,1,1,1,1,1,1,1,1,1,1,5,1,1,"https://rostrud.gov.ru/opendata/7712345678-vyplatyradiation",1,1,1,1,1,1,1,1,1,1,1,1,5,1,1,"https://rostrud.gov.ru/opendata/7712345678-dataset5",1,1,1,1,1,1,1,1,1,1,1,1,5,1,1,70,77]
["Ростуризм","http://www.tourism.gov.ru","http://opendata.tourism.gov.ru/",2,1,3,3,1,1,0,0,1,0,1,"http://opendata.tourism.gov.ru/7708550300-Infrastructureobjects2017",1,1,1,1,1,1,1,1,1,1,1,1,0,1,1,"http://opendata.tourism.gov.ru/7708550300-CentryRosturizm",1,1,1,1,1,1,1,1,1,1,1,1,0,1,1,"http://opendata.tourism.gov.ru/7708550300-MeropriyatiyaRosturizm",1,1,1,1,1,1,1,1,1,1,1,1,0,1,1,55,77]
["Росфинмониторинг","http://www.fedsfm.ru/","http://www.fedsfm.ru/opendata",2,1,0,0,0,0,0,1,0,0,0,"http://www.fedsfm.ru/opendata/684",1,1,1,1,1,1,1,1,0,1,1,0,0,1,1,"http://www.fedsfm.ru/opendata/683",1,1,1,1,1,1,1,1,0,0,0,0,0,1,1,"http://www.fedsfm.ru/opendata/677",1,1,1,1,1,1,1,1,0,0,1,0,0,1,1,37,77]
["СВР России","http://svr.gov.ru/",{"$nulls":60},0,77]
["Управление делами Президента Российской Федерации","https://udprf.ru/","https://udprf.ru/opendata",2,1,0,3,1,1,0,0,0,1,0,"https://udprf.ru/opendata/7710023340-org",1,1,1,1,1,1,1,1,1,1,1,1,5,1,1,"https://udprf.ru/opendata/7710023340-prov",1,1,1,1,1,1,1,1,1,1,1,1,5,1,1,{"$nulls":16},47,77]
["ФАДН России","http://fadn.gov.ru/","http://fadn.gov.ru/opendata",2,1,3,3,0,0,0,0,0,0,0,"http://fadn.gov.ru/opendata/7708257207-omnr",1,1,1,1,1,1,1,1,1,1,1,1,5,1,1,"http://fadn.gov.ru/opendata/7708257207-smsssbg",1,1,1,1,1,1,1,1,1,1,1,1,5,1,1,"http://fadn.gov.ru/opendata/7708257207-yasnr",1,1,1,1,1,1,1,1,1,1,1,1,5,1,1,66,77]
["ФАС России","https://fas.gov.ru/","http://fas.gov.ru/opendata/",2,1,3,3,1,1,0,0,1,1,0,"http://fas.gov.ru/opendata/7703516539-exciseduty",1,1,1,1,0,1,1,1,1,1,0,1,5,1,1,"http://fas.gov.ru/opendata/7703516539-naturalmonopolies",1,1,1,1,1,1,1,1,1,1,1,1,5,1,1,"http://fas.gov.ru/opendata/7703516539-reestrgp",1,1,1,1,0,1,1,1,1,1,1,1,5,1,1,67,77]
["Федеральная пробирная палата","Федеральная пробирная палата",{"$nulls":60},0,77]
["ФМБА России","https://fmba.gov.ru/","https://fmba.gov.ru/opendata/",2,1,3,3,0,1,0,0,0,0,0,"https://fmba.gov.ru/opendata/7734521419-vaccnas/",1,1,1,1,1,1,1,1,1,1,1,1,0,1,1,"https://fmba.gov.ru/opendata/7734521419-infdis/",1,1,1,1,1,1,1,1,1,1,1,0,0,1,1,"https://fmba.gov.ru/opendata/7734521419-vaccepid/",1,1,1,1,1,1,1,1,1,1,1,1,5,1,1,56,77]
["ФНС России","https://www.nalog.ru/rn77/","https://www.nalog.ru/opendata/",2,1,3,3,1,1,0,0,0,0,0,"https://www.nalog.ru/opendata/7707329152-reestrlicbookmaker/",1,1,1,1,1,1,1,1,1,1,1,1,5,1,1,"https://www.nalog.ru/opendata/7707329152-post/",1,1,1,1,1,1,1,1,1,1,1,1,5,1,1,"https://www.nalog.ru/opendata/7707329152-rsmp/",1,1,1,1,1,1,1,1,1,1,1,1,5,1,1,68,77]
["ФСБ России","http://fsb.gov.ru/",{"$nulls":60},0,77]
["ФСВТС России","http://www.fsvts.gov.ru/","http://www.fsvts.gov.ru/opendata/",0,1,0,3,1,0,0,0,0,0,0,"http://www.fsvts.gov.ru/opendata/7705513237-Powers",1,1,1,1,1,1,1,1,1,1,1,1,5,0,0,"http://www.fsvts.gov.ru/opendata/7705513237-Leadership",1,1,1,1,1,1,1,1,1,1,1,1,5,1,1,"http://www.fsvts.gov.ru/opendata/7705513237-Databases",1,1,1,1,1,1,1,1,1,1,1,1,5,0,0,58,77]
["ФСИН России","http://fsin.gov.ru","https://fsin.gov.ru/opendata/",1,1,3,3,1,0,0,0,0,0,0,"https://fsin.gov.ru/opendata/7706562710-characteristic-of-citizens-in-detention-centers-and-prisons/",1,1,1,1,1,1,1,1,1,1,1,1,0,1,1,"https://fsin.gov.ru/opendata/7706562710-harakteristika-osuzhdennyih-po-sovershennyim-prestupleniyam/",1,1,1,1,1,1,1,1,1,1,1,1,0,1,1,"https://fsin.gov.ru/opendata/7706562710-check/",1,1,1,1,1,1,1,1,1,1,1,1,5,1,1,56,77]
["ФСО России","http://www.fso.gov.ru/",{"$nulls":60},0,77]
["ФССП России","https://fssp.gov.ru/","https://opendata.fssp.gov.ru/",2,1,3,3,1,0,0,0,1,1,1,"https://opendata.fssp.gov.ru/7709576929-cashamount",1,1,1,1,1,1,1,1,1,1,1,1,5,1,1,"https://opendata.fssp.gov.ru/7709576929-iplegallist",1,1,1,1,1,1,1,1,1,1,1,1,5,1,1,"https://opendata.fssp.gov.ru/7709576929-iplegallistcomplete",1,1,1,1,1,1,1,1,1,1,1,1,5,1,1,70,77]
["ФСТЭК России","https://fstec.ru/","https://data.gov.ru/federalnaya-sluzhba-po-tehnicheskomu-i-eksportnomu-kontrolyu",2,1,3,3,0,1,0,0,1,1,1,"https://data.gov.ru/opendata/7701350013-reesszi",1,1,1,1,1,1,1,1,1,1,1,1,5,1,1,"https://data.gov.ru/opendata/7701350013-licensestpci",1,1,1,1,1,1,1,1,1,1,1,1,5,1,1,"https://data.gov.ru/opendata/7701350013-licensestooperate",1,1,1,1,1,1,1,1,1,1,1,1,5,1,1,70,77]
["ФТС России","https://customs.gov.ru/","https://customs.gov.ru/opendata",2,1,3,3,1,1,0,1,1,0,0,"https://customs.gov.ru/opendata/7730176610-reestrmbt",1,1,1,1,1,1,1,1,1,1,1,1,5,1,1,"https://customs.gov.ru/opendata/7730176610-reestrvtamskl",1,1,1,1,1,1,1,1,1,1,1,1,5,1,1,"https://customs.gov.ru/opendata/7730176610-reestrtamperev",1,1,1,1,1,1,1,1,1,1,1,1,5,1,1,70,77]

{"sheet":"Оценка_Раунд2","index":3,"n_rows":71,"n_cols":64,"rows_kept":71,"cut":false,"hidden":false,"merged":[]}
["Ведомство","Сайт","Раздел ОД","Раздел легко найти","Раздел ОД доступен","Есть профильные наборы","Есть лицензия","В списке выведен формат","В списке выведено число просмотров / скачиваний","В списке выведен размер файла","В списке выведена дата обновления","Можно оценивать наборы данных","Можно запросить набор данных через форму","Можно оставить комментарий к наборам","Проверочный набор 1","Есть паспорт","В паспорте есть название набора","В паспорте есть описание","В паспорте указан владелец","В паспорте указано ответственное лицо","В паспорте указаны контакты","В паспорте есть гиперссылка на набор","В паспорте указан формат данных","В паспорте есть описание структуры","В паспорте дата есть первой публикации","В паспорте дата последнего обновления","В паспорте есть дата актуальности либо периодичность обновления","Набор актуален","Набор нормально скачивается","Набор открывается и соответствует описанию","Проверочный набор 2","Есть паспорт","В паспорте есть название набора","В паспорте есть описание","В паспорте указан владелец","В паспорте указано ответственное лицо","В паспорте указаны контакты","В паспорте есть гиперссылка на набор","В паспорте указан формат данных","В паспорте есть описание структуры","В паспорте дата есть первой публикации","В паспорте дата последнего обновления","В паспорте есть дата актуальности либо периодичность обновления","Набор актуален","Набор нормально скачивается","Набор открывается и соответствует описанию","Проверочный набор 3","Есть паспорт","В паспорте есть название набора","В паспорте есть описание","В паспорте указан владелец","В паспорте указано ответственное лицо","В паспорте указаны контакты","В паспорте есть гиперссылка на набор","В паспорте указан формат данных","В паспорте есть описание структуры","В паспорте дата есть первой публикации","В паспорте дата последнего обновления","В паспорте есть дата актуальности либо периодичность обновления","Набор актуален","Набор нормально скачивается","Набор открывается и соответствует описанию","Общий балл","Максимальный балл"]
["Главное управление специальных программ Президента Российской Федерации (ГУСП)","http://www.gusp.gov.ru/",{"$nulls":60},0,77]
["Государственная фельдъегерская служба Российской Федерации (ГФС России)","https://gfs.gov.ru/","https://gfs.gov.ru/opendata/",2,1,0,3,1,0,0,0,0,0,0,"https://gfs.gov.ru/opendata/7709133821-od-fggs",1,1,1,1,1,1,1,1,1,1,1,1,5,1,0,"https://gfs.gov.ru/opendata/7709133821-od-to",1,1,1,1,1,1,1,1,1,1,1,1,5,1,1,"https://gfs.gov.ru/opendata/7709133821-od-po",1,1,1,1,1,1,1,1,1,1,1,1,5,1,1,63,77]
["МВД России","https://мвд.рф/","https://мвд.рф/открытые-данные",2,1,3,3,1,1,0,1,0,0,0,"https://мвд.рф/открытые-данные/7727739372-sosprestupnost",1,1,1,1,1,1,1,1,1,1,1,1,5,1,1,"https://мвд.рф/открытые-данные/7727739372-MVDGIAC35",1,1,1,1,1,1,1,1,1,1,1,1,5,1,1,"https://мвд.рф/открытые-данные/7727739372-MVDGIAC38",1,1,1,1,1,1,1,1,1,1,1,1,5,1,1,69,77]
["Минздрав России","https://minzdrav.gov.ru/","https://minzdrav.gov.ru/opendata",2,1,3,3,1,1,0,0,1,0,0,"https://minzdrav.gov.ru/opendata/7707778246-gosreestrpredelnyhotpusknyhcen",1,1,1,1,1,1,1,1,1,1,1,1,0,1,1,"https://minzdrav.gov.ru/opendata/7707778246-reestrklinicheskihissledovanii",1,1,1,1,1,1,1,1,1,1,1,1,5,1,1,"https://minzdrav.gov.ru/opendata/7707778246-perechenobshchihprotivopokazanijdlyasanatornokurortnogolecheniya",1,1,1,1,1,1,1,1,1,1,1,1,5,1,1,64,77]
["МИД России","https://www.mid.ru/ru/home","https://www.mid.ru/diverse/-/asset_publisher/8bWtTfQKqtaS/content/id/680111",2,1,0,3,0,0,0,0,0,0,0,"https://www.mid.ru/web/guest/diverse/-/asset_publisher/8bWtTfQKqtaS/content/id/679901",1,1,1,1,1,1,1,1,1,1,1,1,5,1,1,"https://www.mid.ru/web/guest/diverse/-/asset_publisher/8bWtTfQKqtaS/content/id/679930",1,1,1,1,1,1,1,1,1,1,1,1,5,1,1,"https://www.mid.ru/documents/10180/2797750/Основная+часть+файла.pdf/f064e90e-3f3a-42c8-a65a-03cc37585137",0,0,0,0,0,0,0,0,0,0,0,0,0,0,0,44,77]
["Минкультуры России","http://culture.gov.ru/","https://opendata.mkrf.ru/opendata",2,1,3,0,1,0,0,0,1,1,0,"https://opendata.mkrf.ru/opendata/7705851331-heritage_safekeeping_licenses",1,1,1,1,1,1,1,1,1,1,1,1,5,1,1,"https://opendata.mkrf.ru/opendata/7705851331-certified_experts",1,1,1,1,1,1,1,1,1,1,1,1,5,1,1,"https://opendata.mkrf.ru/opendata/7705851331-archeology_list",1,1,1,1,1,1,1,1,1,1,1,1,5,1,1,66,77]
["Минобрнауки России","https://www.minobrnauki.gov.ru/","https://www.minobrnauki.gov.ru/opendata/",2,1,3,3,1,1,0,1,1,0,1,"https://www.minobrnauki.gov.ru/opendata/9710062939-informatsiya-o-rezultatakh-planovykh-i-vneplanovykh-proverok-provedennykh-ministerstvom-nauki-i-vyssh2020",1,1,1,1,1,1,1,1,1,1,1,1,5,1,1,"https://www.minobrnauki.gov.ru/opendata/9710062939-svedeniya-o-prieme-chislennosti-studentov-i-vypuske-spetsialistov-obrazovatelnykh-organizatsiyakh-os",1,1,1,1,1,1,1,1,1,1,1,1,5,1,1,"https://www.minobrnauki.gov.ru/opendata/9710062939-informatsiya-o-rezultatakh-planovykh-i-vneplanovykh-proverok-provedennykh-ministerstvom-nauki-i-vyssh",1,1,1,1,0,0,1,1,1,1,1,1,0,1,1,64,77]
["Минобороны России","http://mil.ru/","http://mil.ru/opendata.htm",1,0,{"$nulls":57},1,77]
["Минприроды России","http://www.mnr.gov.ru/","https://www.mnr.gov.ru/opendata/",2,1,3,3,1,1,1,0,1,1,1,"https://www.mnr.gov.ru/opendata/7710256289_confiscated_hunting_resources",1,1,1,1,1,1,1,1,1,1,1,1,5,1,1,"https://www.mnr.gov.ru/opendata/7710256289_hunting_offenses",1,1,1,1,1,1,1,1,1,1,1,1,5,1,1,"https://www.mnr.gov.ru/opendata/7710256289-Biodiversity",1,1,1,1,1,1,1,1,1,1,1,1,5,1,1,72,77]
["Минпромторг России","https://www.minpromtorg.gov.ru/","https://www.minpromtorg.gov.ru/opendata/",2,1,3,3,1,1,1,1,1,1,0,"https://www.minpromtorg.gov.ru/opendata/7705596339-avialic/",1,1,1,1,1,1,1,1,1,1,1,1,5,1,1,"https://www.minpromtorg.gov.ru/opendata/7705596339-expertiseorgs/",1,1,1,1,1,1,1,1,1,1,1,0,0,1,1,"https://www.minpromtorg.gov.ru/opendata/7705596339-gunslic/",1,1,1,1,1,1,1,1,1,1,1,1,5,1,1,66,77]
["Минпросвещения России","https://edu.gov.ru/","https://opendata.edu.gov.ru/opendata/",2,1,3,3,1,1,0,0,0,0,0,"https://opendata.edu.gov.ru/opendata/7707418081-BankDeti",1,1,1,1,1,1,1,1,1,1,1,1,5,1,1,"https://opendata.edu.gov.ru/opendata/7707418081-REMC",1,1,1,1,1,1,1,1,1,1,1,1,5,1,1,"https://opendata.edu.gov.ru/opendata/7707418081-ReestrGPDS",1,1,1,1,1,1,1,1,1,1,1,1,5,1,1,68,77]
["МЧС России","https://www.mchs.gov.ru/","https://www.mchs.gov.ru/ministerstvo/otkrytoe-ministerstvo/otkrytye-dannye",2,1,3,3,1,1,1,1,1,1,1,"https://www.mchs.gov.ru/ministerstvo/otkrytoe-ministerstvo/otkrytye-dannye/7707034952-OilSpill",1,1,1,1,0,1,1,1,1,1,1,0,0,1,1,"https://www.mchs.gov.ru/ministerstvo/otkrytoe-ministerstvo/otkrytye-dannye/7707034952-FireSafetyAudit",1,1,1,1,0,1,1,1,1,1,1,0,0,1,1,"https://www.mchs.gov.ru/ministerstvo/otkrytoe-ministerstvo/otkrytye-dannye/7707034952-StateControl",1,1,1,1,0,1,1,1,1,1,1,0,0,1,1,52,77]
["Минвостокразвития России","https://minvr.gov.ru/","https://minvr.gov.ru/opendata/",2,1,3,3,1,1,1,1,0,0,0,"https://minvr.gov.ru/opendata/2721194275-stateprogram/",1,1,1,1,1,1,1,1,1,1,1,1,5,1,1,"https://minvr.gov.ru/opendata/2721194275-valuestateprogramm/",1,1,1,1,1,1,1,1,1,1,1,1,5,1,1,"https://minvr.gov.ru/opendata/2721194275-revisions/",1,1,1,1,1,1,1,1,1,1,1,1,5,1,1,70,77]
["Минсельхоз России","https://mcx.gov.ru/","https://mcx.gov.ru/activity/open-data/",2,1,3,3,1,1,1,1,1,0,0,"http://opendata.mcx.ru/opendata/7708075454-organicprod",1,1,1,1,1,1,1,1,1,1,1,1,5,1,1,"http://opendata.mcx.ru/opendata/7708075454-veschestva",1,1,1,1,1,1,1,1,1,1,1,1,5,1,1,"http://opendata.mcx.ru/opendata/7708075454-matochnoepogolovie",1,1,1,1,1,1,1,1,1,1,1,1,5,1,1,71,77]
["Минспорт России","https://minsport.gov.ru/","https://minsport.gov.ru/opendata/",1,1,3,3,0,0,0,0,0,0,0,"https://minsport.gov.ru/opendata/192/29872/",1,1,1,1,1,1,1,1,1,1,0,1,0,1,1,"https://minsport.gov.ru/opendata/192/28404/",1,1,1,1,1,1,1,1,1,1,0,1,0,1,1,"https://minsport.gov.ru/opendata/192/29869/",1,1,1,1,1,1,1,1,1,1,0,1,0,1,1,47,77]
["Минстрой России","http://www.minstroyrf.gov.ru/","http://www.minstroyrf.gov.ru/opendata/",2,1,3,3,1,1,1,1,1,1,1,"http://www.minstroyrf.gov.ru/opendata/7707780887-reestrstroit/",1,1,1,1,1,1,1,1,1,1,1,1,5,1,1,"https://www.minstroyrf.gov.ru/opendata/7707780887-puttingintooperation/",1,1,1,1,1,1,1,1,1,1,1,1,5,1,1,"https://www.minstroyrf.gov.ru/opendata/7707780887-emergencyhousing/",1,1,1,1,1,1,1,1,1,1,1,1,5,1,1,73,77]
["Минтранс России","https://mintrans.gov.ru/","https://mintrans.gov.ru/opendata/",2,1,3,3,1,1,1,0,1,0,1,"https://mintrans.gov.ru/opendata/7705851331-reestrautomzd",1,1,1,1,1,1,1,1,1,1,1,1,0,1,1,"https://mintrans.gov.ru/opendata/7705851331-proverkainfo",1,1,1,1,1,1,1,1,1,1,1,1,5,1,1,"https://mintrans.gov.ru/opendata/7705851331-stoppointsmzd",1,1,1,1,1,1,1,1,1,1,1,1,0,1,1,61,77]
["Минтруд России","https://mintrud.gov.ru/","https://mintrud.gov.ru/opendata",2,1,3,3,1,1,0,1,0,0,0,"https://mintrud.gov.ru/opendata/7710914971-razmeri_posobiy_materinstvo",1,1,1,1,1,1,1,1,1,1,1,1,5,1,1,"https://mintrud.gov.ru/opendata/7710914971-pensii_sofinans",1,1,1,1,1,1,1,1,1,1,1,1,5,1,1,"https://mintrud.gov.ru/opendata/7710914971-Pension_insurance_additional_contributions",1,1,1,1,1,1,1,1,1,1,1,1,5,1,1,69,77]
["Минфин России","https://minfin.gov.ru/ru/","https://minfin.gov.ru/ru/opendata/",2,1,3,3,1,1,1,1,0,1,1,"https://minfin.gov.ru/OpenData/7710168360-auction_results/",1,1,1,1,1,1,1,1,1,1,1,0,0,1,1,"https://minfin.gov.ru/OpenData/7710168360-OFZ-n_redeemed/",1,1,1,1,1,1,1,1,1,1,1,0,0,1,1,"https://minfin.gov.ru/OpenData/7710168360-subbud_year/",1,1,1,1,1,1,1,1,1,1,1,1,5,1,1,60,77]
["Минцифры России","https://digital.gov.ru","https://digital.gov.ru/opendata/",2,1,3,3,1,1,0,1,0,1,0,"https://digital.gov.ru/opendata/7710474375-trpch/",1,1,1,1,1,1,1,1,1,1,1,1,0,1,1,"https://digital.gov.ru/opendata/7710474375-obmennasetyahsvyazi/",1,1,1,1,1,1,1,1,1,1,1,1,5,1,1,"https://digital.gov.ru/opendata/7710474375-registergosaccred/",1,1,1,1,1,1,1,1,1,1,1,1,0,1,1,60,77]
["Минэкономразвития России","http://www.economy.gov.ru/","https://www.economy.gov.ru/material/open_data/",2,1,3,3,0,1,0,0,1,1,1,"https://data.gov.ru/opendata/7710349494-project01",1,1,1,1,1,1,1,1,1,1,1,1,0,1,1,"https://data.gov.ru/opendata/7710349494-govprogram17",1,1,1,1,1,1,1,1,1,1,1,1,0,1,1,"https://data.gov.ru/opendata/7710349494-govprogram13",1,1,1,1,1,1,1,1,1,1,1,1,0,1,1,55,77]
["Минэнерго России","http://minenergo.gov.ru/","https://minenergo.gov.ru/opendata",2,1,3,3,1,1,0,0,0,0,1,"https://minenergo.gov.ru/opendata/7705847529-dobychagaza",1,1,1,1,1,1,1,1,1,1,1,1,5,1,1,"https://minenergo.gov.ru/opendata/7705847529-proizvodstvo-nefti",1,1,1,1,1,1,1,1,1,1,1,1,5,1,1,"https://minenergo.gov.ru/opendata/7705847529-dobychauglya",1,1,1,1,1,1,1,1,1,1,1,1,5,1,1,69,77]
["Минюст России","http://minjust.gov.ru/","https://minjust.gov.ru/ru/pages/opendata/",2,1,3,3,0,0,0,0,1,0,1,"https://data.gov.ru/opendata/7707211418-spisokekstremistov",1,1,1,1,1,1,1,1,1,1,1,1,0,1,1,"https://data.gov.ru/opendata/7707211418-kontrolnadzor",1,1,1,1,1,1,1,1,1,1,1,1,0,1,1,"https://data.gov.ru/opendata/7707211418-kontroladvokatami",1,1,1,1,1,1,1,1,1,1,1,1,0,1,1,53,77]
["СВР России","http://svr.gov.ru/",{"$nulls":60},0,77]
["Управление делами Президента Российской Федерации","http://www.udprf.ru/","https://udprf.ru/opendata",1,1,0,3,1,1,0,0,1,1,0,"https://udprf.ru/opendata/7710023340-org",1,1,1,1,1,1,1,1,1,1,1,1,5,1,1,"https://udprf.ru/opendata/7710023340-prov",1,1,1,1,1,1,1,1,1,1,1,1,5,1,1,{"$nulls":16},47,77]
["ФАС России","http://www.fas.gov.ru/","http://fas.gov.ru/opendata/",1,1,3,3,1,1,0,0,1,1,0,"http://fas.gov.ru/opendata/7703516539-postalrates",1,1,1,1,0,1,1,1,1,1,1,1,0,1,1,"http://fas.gov.ru/opendata/7703516539-foreignlegislation",1,1,1,1,0,1,1,1,1,1,0,1,0,1,1,"http://fas.gov.ru/opendata/7703516539-indexconcentrationkul",1,1,1,1,1,1,1,1,1,1,0,1,5,1,1,55,77]
["ФНС России","https://nalog.gov.ru/","https://www.nalog.ru/opendata/",1,1,3,3,1,1,0,0,0,1,1,"https://www.nalog.ru/opendata/7707329152-massfounders/",1,1,1,1,1,1,1,1,1,1,1,1,5,1,1,"https://www.nalog.ru/opendata/7707329152-registerdisqualified/",1,1,1,1,1,1,1,1,1,1,1,1,5,1,1,"www.nalog.ru/opendata/7707329152-ttpersonal/",1,1,1,1,1,1,1,1,1,1,1,1,5,1,1,69,77]
["Федеральная пробирная палата","http://www.probpalata.ru/rgpp/",{"$nulls":60},0,77]
["ФСБ России","http://fsb.gov.ru/",{"$nulls":60},0,77]
["Росгвардия","http://rosguard.gov.ru","https://rosguard.gov.ru/opendata",2,1,3,3,1,0,0,1,0,1,0,"https://rosguard.gov.ru/opendata/7722377866-choop",1,1,1,1,0,0,1,1,1,1,1,1,0,1,1,"https://rosguard.gov.ru/opendata/7722377866-tgso",1,1,1,1,0,0,1,1,1,1,1,1,0,1,1,"https://rosguard.gov.ru/opendata/7722377866-chd",1,1,1,1,0,0,1,1,1,1,1,1,0,1,1,48,77]
["Росреестр","http://rosreestr.gov.ru/","https://rosreestr.gov.ru/wps/portal/cc_ib_opendata",2,1,3,3,1,0,0,0,0,0,0,"https://rosreestr.gov.ru/wps/portal/p/cc_ib_portal_services/cc_ib_opendata2/!ut/p/c5/04_SB8K8xLLM9MSSzPy8xBz9CP0os3gDQ1NHQw8TA08DF3MLA0dHV7-QAG8DIDAHykeaxXu6ewV4eLsbGrgH-hgYeDq7BBsGOJobGAQYENAdDrIPSYW_r7EpUIVziJeveZCRgYUJRB6f-WD9OICjgb6fR35uqn5BboRBZkC6IgC4i9rh/dl3/d3/L0lDU0lKSWdrbUNTUS9JUFJBQUlpQ2dBek15cXpHWUEhIS80QkVqOG8wRmxHaXQtYlhwQUh0Qi83XzAxNUExSDQwSTBENzgwQUFFTlRQSzAwMEc1L1N1ckd2OTgzNzAwNzQvc2EucnUuZmNjbGFuZC5pYm1wb3J0YWwuc3ByaW5nLnBvcnRsZXQuZGlzcGF0Y2hlci5EaXNwYXRjaGVyQWN0aW9uRXZlbnQtTVVMVElQQVJU/?PC_7_015A1H40I0D780AAENTPK000G5000000_ru.fccland.ibmportal.spring.portlet.handler.BeanNameParameterHandlerMapping-PATH=%2fShowInfoblockPageController&param_infoblock_document_path=25000%20metadannye%20cifr.%20topog.karty.htm",1,1,1,1,1,1,1,1,0,1,1,1,5,1,1,"https://rosreestr.gov.ru/wps/portal/p/cc_ib_portal_services/cc_ib_opendata2/!ut/p/c5/04_SB8K8xLLM9MSSzPy8xBz9CP0os3gDQ1NHQw8TA08DF3MLA0dHV7-QAG8DIDAHykeaxXu6ewV4eLsbGrgH-hgYeDq7BBsGOJobGAQYENAdDrIPSYW_r7EpUIVziJeveZCRgYUJRB6f-WD9OICjgb6fR35uqn5BboRBZkC6IgC4i9rh/dl3/d3/L0lDU0lKSWdrbUNTUS9JUFJBQUlpQ2dBek15cXpHWUEhIS80QkVqOG8wRmxHaXQtYlhwQUh0Qi83XzAxNUExSDQwSTBENzgwQUFFTlRQSzAwMEc1Lzl1ckd2OTgzNzAwODMvc2EucnUuZmNjbGFuZC5pYm1wb3J0YWwuc3ByaW5nLnBvcnRsZXQuZGlzcGF0Y2hlci5EaXNwYXRjaGVyQWN0aW9uRXZlbnQtTVVMVElQQVJU/?PC_7_015A1H40I0D780AAENTPK000G5000000_ru.fccland.ibmportal.spring.portlet.handler.BeanNameParameterHandlerMapping-PATH=%2fShowInfoblockPageController&param_infoblock_document_path=SVED%20GSRO.htm",1,1,1,1,1,1,1,1,1,1,1,1,0,1,1,"https://rosreestr.gov.ru/wps/portal/p/cc_ib_portal_services/cc_ib_opendata2/!ut/p/c5/04_SB8K8xLLM9MSSzPy8xBz9CP0os3gDQ1NHQw8TA08DF3MLA0dHV7-QAG8DIDAHykeaxXu6ewV4eLsbGrgH-hgYeDq7BBsGOJobGAQYENAdDrIPSYW_r7EpUIVziJeveZCRgYUJRB6f-WD9OICjgb6fR35uqn5BboRBZkC6IgC4i9rh/dl3/d3/L0lDU0lKSWdrbUNTUS9JUFJBQUlpQ2dBek15cXpHWUEhIS80QkVqOG8wRmxHaXQtYlhwQUh0Qi83XzAxNUExSDQwSTBENzgwQUFFTlRQSzAwMEc1L3lqckd2OTgzNzAwODkvc2EucnUuZmNjbGFuZC5pYm1wb3J0YWwuc3ByaW5nLnBvcnRsZXQuZGlzcGF0Y2hlci5EaXNwYXRjaGVyQWN0aW9uRXZlbnQtTVVMVElQQVJU/?PC_7_015A1H40I0D780AAENTPK000G5000000_ru.fccland.ibmportal.spring.portlet.handler.BeanNameParameterHandlerMapping-PATH=%2fShowInfoblockPageController&param_infoblock_document_path=LICENSE.htm",1,1,1,1,1,1,1,1,1,1,1,1,0,1,1,56,77]
["Росстат","http://rosstat.gov.ru/","https://rosstat.gov.ru/folder/12793",2,1,3,3,1,0,0,1,1,1,1,"https://rosstat.gov.ru/opendata/7708234640-VSHP2016539",1,1,1,1,1,1,1,1,1,1,1,1,0,1,1,"https://rosstat.gov.ru/opendata/7708234640-VSHP2016506",1,1,1,1,1,1,1,1,1,1,1,1,0,1,1,"https://rosstat.gov.ru/opendata/7708234640-VSHP2016449",1,1,1,1,1,1,1,1,1,1,1,1,0,1,1,56,77]
["ФСИН России","https://fsin.gov.ru/","https://fsin.gov.ru/opendata/",2,1,0,3,0,0,0,0,0,0,0,"https://fsin.gov.ru/opendata/7706562710-harakteristika-osuzhdennyih-po-sovershennyim-prestupleniyam/",1,1,1,1,1,1,1,1,1,1,1,1,5,1,1,"https://fsin.gov.ru/opendata/7706562710-inspection-report/",0,0,0,0,0,0,0,0,0,0,0,0,0,0,0,"https://fsin.gov.ru/opendata/7706562710-characteristic-of-citizens-in-the-pc/",1,1,1,1,1,1,1,1,1,1,1,1,5,1,1,44,77]
["ФСО России","http://www.fso.gov.ru/",{"$nulls":60},0,77]
["Росаккредитация","https://fsa.gov.ru/","https://fsa.gov.ru/opendata/",2,1,0,3,1,0,0,0,1,0,1,"https://fsa.gov.ru/opendata/7736638268-negosexpert/",1,1,1,1,0,1,1,1,1,1,1,1,5,1,1,"https://fsa.gov.ru/opendata/7736638268-negosexpert/",1,1,1,1,0,1,1,1,1,1,1,1,5,1,1,"https://fsa.gov.ru/opendata/7736638268-reo/",1,1,1,1,0,1,1,1,1,1,1,1,5,1,1,63,77]
["Россельхознадзор","https://fsvps.gov.ru/","https://fsvps.gov.ru/opendata",2,1,3,3,1,1,1,1,1,0,1,"https://data.gov.ru/opendata/7708523530-statgoslicenzirovanie",1,1,1,1,1,1,1,1,1,1,1,1,5,1,1,"https://data.gov.ru/opendata/7708523530-spisokzaregdobavok",1,1,1,1,1,1,1,1,1,1,1,1,5,1,1,"https://data.gov.ru/opendata/7708523530-ogranichennavvoz",1,1,1,1,1,1,1,1,1,1,1,1,5,1,1,72,77]
["ФСВТС России","http://www.fsvts.gov.ru/","http://www.fsvts.gov.ru/opendata/",0,1,0,3,1,0,0,0,0,1,0,"http://www.fsvts.gov.ru/opendata/7705513237-Subdivisions",1,1,1,1,1,1,1,1,1,1,1,1,5,1,1,"http://www.fsvts.gov.ru/opendata/7705513237-Leadership",1,1,1,1,1,1,1,1,1,1,1,1,5,1,1,"http://www.fsvts.gov.ru/opendata/7705513237-Contacts",1,1,1,1,1,1,1,1,1,1,1,1,5,1,1,63,77]
["Росгидромет","http://meteorf.gov.ru/","http://www.meteorf.ru/opendata/",2,1,3,3,1,0,0,0,0,1,1,"http://www.meteorf.ru/opendata/7703092752-gidro/",1,1,1,1,1,1,1,1,1,1,0,1,0,1,1,"http://www.meteorf.ru/opendata/7703092752-pollut/",1,1,1,1,1,1,1,1,1,1,0,1,0,1,1,"http://www.meteorf.ru/opendata/7703092752-meteo/",1,1,1,1,1,1,1,1,1,1,1,1,5,1,1,57,77]
["Роспатент","https://rospatent.gov.ru/ru","https://rospatent.gov.ru/opendata",2,1,3,3,1,1,1,1,1,1,0,"https://rospatent.gov.ru/opendata/7730176088-iz",1,1,1,1,1,1,1,1,1,1,1,1,5,1,1,"https://rospatent.gov.ru/opendata/7730176088-tims",1,1,1,1,1,1,1,1,1,1,1,1,5,1,1,"https://rospatent.gov.ru/opendata/7730176088-evm",1,1,1,1,1,1,1,1,1,1,1,1,5,1,1,72,77]
["Роспотребнадзор","https://www.rospotrebnadzor.ru/","http://opendata.rospotrebnadzor.ru/",2,1,3,3,0,0,0,0,0,0,1,"http://opendata.rospotrebnadzor.ru/7707515984-licen/",1,1,1,1,1,1,1,1,1,1,1,1,5,1,1,"http://opendata.rospotrebnadzor.ru/7707515984-statwater/",1,1,1,1,1,1,1,1,1,1,1,1,5,1,1,"http://opendata.rospotrebnadzor.ru/7707515984-listlaw_zpp/",1,1,1,1,1,1,1,1,1,1,1,1,5,1,1,67,77]
["Росздравнадзор","https://roszdravnadzor.gov.ru/","https://roszdravnadzor.gov.ru/opendata",2,1,3,3,1,0,0,0,0,1,1,"https://roszdravnadzor.gov.ru/opendata/7710537160-ionspp",1,1,1,1,1,1,1,1,1,1,1,1,5,1,1,"https://roszdravnadzor.gov.ru/opendata/7710537160-clinical",1,1,1,1,1,1,1,1,1,1,1,1,5,1,1,"https://roszdravnadzor.gov.ru/opendata/7710537160-drugs_qualitycontrol",1,1,1,1,1,1,1,1,1,1,1,1,5,1,1,69,77]
["Рособрнадзор","http://obrnadzor.gov.ru/","http://obrnadzor.gov.ru/otkrytoe-pravitelstvo/opendata/",2,1,0,3,0,0,0,0,0,0,1,"http://obrnadzor.gov.ru/otkrytoe-pravitelstvo/opendata/7701537808-raoo/",1,1,1,1,1,1,1,1,1,1,1,1,0,1,1,"http://obrnadzor.gov.ru/otkrytoe-pravitelstvo/opendata/7701537808-statctrl/",1,1,1,1,1,1,1,1,1,1,1,1,0,1,1,"http://obrnadzor.gov.ru/otkrytoe-pravitelstvo/opendata/7701537808-statlic/",1,1,1,1,1,1,1,1,1,1,1,1,0,1,1,49,77]
["Росприроднадзор","http://rpn.gov.ru/","https://rpn.gov.ru/opendata/",2,1,3,3,0,1,0,1,0,0,0,"https://rpn.gov.ru/opendata/7703381225-objectker",1,0,0,1,1,1,1,1,1,1,1,1,0,1,1,"https://rpn.gov.ru/opendata/7703381225-reestrdob",1,0,0,1,1,1,1,1,1,1,1,1,5,1,1,"https://rpn.gov.ru/opendata/7703381225-grunt",1,0,0,1,1,1,1,1,1,1,1,1,5,1,1,57,77]
["Роскомнадзор","http://rkn.gov.ru/","http://rkn.gov.ru/opendata/",2,1,3,3,0,0,0,0,1,1,1,"http://rkn.gov.ru/opendata/7705846236-RadioFrequencyLicenseSmarineRadios/",1,1,1,1,1,1,1,1,0,1,1,0,5,1,1,"http://rkn.gov.ru/opendata/7705846236-AccreditedExpertsMassCommunications/",1,1,1,1,1,1,1,1,1,1,1,0,0,1,1,"http://rkn.gov.ru/opendata/7705846236-PermToDistributeForeignPeriodicals/",1,1,1,1,1,1,1,1,1,1,1,0,5,1,1,60,77]
["Ространснадзор","http://rostransnadzor.gov.ru/","https://rostransnadzor.gov.ru/opendata",2,1,0,3,1,0,0,1,1,1,1,"https://rostransnadzor.gov.ru/opendata/7714549751-reestrinformsystem",1,1,1,1,1,1,1,1,1,1,1,1,0,1,1,"https://rostransnadzor.gov.ru/opendata/7714549751-reestrlicenziy",1,1,1,1,0,0,1,1,1,1,1,1,0,1,1,"https://rostransnadzor.gov.ru/opendata/7714549751-statinfo",1,1,1,1,1,1,1,1,1,1,1,1,0,1,1,51,77]
["Росалкогольрегулирование","http://fsrar.gov.ru/","http://fsrar.gov.ru/opendata",2,1,3,3,1,0,0,0,1,1,1,"https://fsrar.gov.ru/opendata/7710747640-proizsppv/",1,1,1,1,1,1,1,1,1,1,1,1,5,1,1,"https://fsrar.gov.ru/opendata/7710747640-proizapbpipn/",1,1,1,1,1,1,1,1,1,1,1,1,0,1,1,"https://fsrar.gov.ru/opendata/7710747640-piksp/",1,1,1,1,1,1,1,1,1,1,1,1,5,1,1,65,77]
["ФСТЭК России","http://www.fstec.ru/","https://data.gov.ru/federalnaya-sluzhba-po-tehnicheskomu-i-eksportnomu-kontrolyu",2,1,3,3,0,0,0,0,1,1,1,"https://data.gov.ru/opendata/7701350013-labs",1,1,1,1,1,1,1,1,1,1,1,1,0,1,1,"https://data.gov.ru/opendata/7701350013-licensestooperate",1,1,1,1,1,1,1,1,1,1,1,1,0,1,1,"https://data.gov.ru/opendata/7701350013-licensestpci",1,1,1,1,1,1,1,1,1,1,1,1,0,1,1,54,77]
["Роструд","http://rostrud.gov.ru/","https://rostrud.gov.ru/opendata/",2,1,3,3,0,1,0,1,1,1,0,"https://rostrud.gov.ru/opendata/7712345678-vyplatyberem",1,1,1,1,1,1,1,1,1,1,1,1,5,1,1,"https://rostrud.gov.ru/opendata/7712345678-nes2015",1,1,1,1,1,1,1,1,1,1,1,1,0,1,1,"https://rostrud.gov.ru/opendata/7712345678-dataset313",1,1,1,1,1,1,1,1,1,1,1,1,5,1,1,65,77]
["Росфинмониторинг","http://www.fedsfm.ru/","http://www.fedsfm.ru/opendata",2,1,0,3,0,0,0,1,0,0,0,"http://www.fedsfm.ru/opendata/684",1,1,1,1,1,1,1,1,0,1,1,0,0,1,1,"http://www.fedsfm.ru/opendata/683",1,1,1,1,1,1,1,1,0,0,0,1,0,1,1,"http://www.fedsfm.ru/opendata/677",1,1,1,1,1,1,1,1,0,0,1,0,0,1,1,41,77]
["Ростехнадзор","http://gosnadzor.gov.ru/","http://gosnadzor.gov.ru/opendata/",2,1,3,3,0,0,0,0,0,0,0,"http://gosnadzor.gov.ru/opendata/7709561778-avarii/index_od.php",1,1,1,1,1,1,1,1,1,1,1,1,0,1,1,"http://gosnadzor.gov.ru/opendata/7709561778-docstrateg/index_od.php",1,1,1,1,1,1,1,1,1,1,0,1,0,1,1,"http://gosnadzor.gov.ru/opendata/7709561778-svednar/index_od.php",1,1,1,1,1,1,1,1,1,1,1,1,0,1,1,50,77]
["ФССП России","http://fssp.gov.ru/","https://opendata.fssp.gov.ru/",2,1,3,3,1,0,0,0,1,0,1,"https://opendata.fssp.gov.ru/7709576929-iplegallist",1,1,1,1,1,1,1,1,1,1,1,1,5,1,1,"https://opendata.fssp.gov.ru/7709576929-iplegallistcomplete",1,1,1,1,1,1,1,1,1,1,1,1,5,1,1,"https://opendata.fssp.gov.ru/7709576929-ecoindicatorsub",1,1,1,1,1,1,1,1,1,1,1,1,5,1,1,69,77]
["ФТС России","http://customs.gov.ru/","https://customs.gov.ru/opendata",2,1,3,3,1,0,0,1,1,0,0,"https://customs.gov.ru/opendata/7730176610-statdolyamspgod",1,1,1,1,1,1,1,1,1,1,1,1,0,1,1,"https://customs.gov.ru/opendata/7730176610-statoboroteaugod",1,1,1,1,1,1,1,1,1,1,1,1,0,1,1,"https://customs.gov.ru/opendata/7730176610-rebankincredit",1,1,1,1,1,1,1,1,1,1,1,1,5,1,1,59,77]
["Росводресурсы","http://voda.mnr.gov.ru/","https://voda.gov.ru/opendata/index.php",2,1,3,3,1,0,0,0,0,0,1,"https://voda.gov.ru/opendata/7728513882-2_6_gvr/",1,1,1,1,1,1,1,1,1,1,1,1,0,1,1,"https://voda.gov.ru/opendata/7728513882-3_3gvr/",1,1,1,1,1,1,1,1,1,1,1,1,0,1,1,"https://voda.gov.ru/opendata/7728513882-limityzabora/",1,1,1,1,1,1,1,1,1,1,1,1,0,1,1,53,77]
["Росавиация","http://favt.gov.ru/","http://favt.gov.ru/opendata/",1,1,3,3,1,1,0,0,1,0,1,"http://favt.gov.ru/opendata/7714549744-reestrattestorg/",1,1,1,1,1,1,1,1,1,1,1,1,5,1,1,"http://favt.gov.ru/opendata/7714549744-statsamkilomga/",1,1,1,1,1,1,1,1,1,1,1,1,5,1,1,"http://favt.gov.ru/opendata/7714549744-reestrakkredorg/",1,1,1,1,1,1,1,1,1,1,1,1,0,1,1,64,77]
["Росжелдор","http://rlw.gov.ru/","http://www.rlw.gov.ru/opendata",2,1,3,3,1,0,0,1,1,0,1,"http://www.rlw.gov.ru/opendata/7708525167-ogrpropusk",1,1,0,1,1,1,1,1,1,1,1,1,5,1,1,"http://www.rlw.gov.ru/opendata/7708525167-registrpassvagon",1,1,1,1,1,1,1,1,1,1,1,1,5,1,1,"http://www.rlw.gov.ru/opendata/7708525167-tariftranzit",1,1,1,1,1,1,1,1,1,1,1,1,5,1,1,69,77]
["Рослесхоз","http://rosleshoz.gov.ru/","http://rosleshoz.gov.ru/opendata",2,1,3,3,1,0,0,1,0,0,0,"http://rosleshoz.gov.ru/opendata/7705598840-RegisterPlants",1,1,1,1,1,1,1,1,1,1,1,1,5,1,1,"http://rosleshoz.gov.ru/opendata/7705598840-ForestFund",1,1,1,1,1,1,1,1,1,1,1,1,5,1,1,"http://rosleshoz.gov.ru/opendata/7705598840-WoodStock",1,1,1,1,1,1,1,1,1,1,1,1,5,1,1,68,77]
["Росморречфлот","http://morflot.gov.ru/","http://morflot.gov.ru/glavnaya/otkryitoe_agentstvo/opendata.html",2,1,3,3,1,1,0,0,0,1,1,"http://opendata.morflot.ru/7707516988-GMSSB",1,1,1,1,1,1,1,1,1,1,1,1,0,1,1,"http://opendata.morflot.ru/7707516988-planproverokvuzov",1,1,1,1,1,1,1,1,1,1,1,0,5,1,1,"http://opendata.morflot.ru/7707516988-KABOTAG",1,1,1,1,1,1,1,1,1,1,1,1,0,1,1,59,77]
["Росрезерв","https://rosrezerv.gov.ru/","https://rosrezerv.gov.ru/opendata/",2,1,0,3,1,0,0,0,0,1,0,"https://rosrezerv.gov.ru/opendata/7710474294-reestrpodved",1,1,1,1,1,1,1,1,1,1,1,1,5,1,1,"https://rosrezerv.gov.ru/opendata/7710474294-reestrypravcentrapp",1,1,1,1,1,1,1,1,1,1,1,1,5,1,1,"https://rosrezerv.gov.ru/opendata/7710474294-reestrterrorg",1,1,1,1,1,1,1,1,1,1,1,1,5,1,1,65,77]
["Росмолодёжь","https://fadm.gov.ru/","https://fadm.gov.ru/opendata",2,1,0,3,1,1,1,1,1,0,0,"https://fadm.gov.ru/opendata/7703672351-podvedorgs",1,1,1,1,0,0,1,1,1,1,1,1,5,1,1,"https://fadm.gov.ru/opendata/7703672351-regionorgs",1,1,1,1,0,0,1,1,1,1,1,1,5,1,1,"https://fadm.gov.ru/opendata/7703672351-vacancies",1,1,1,1,0,0,1,1,1,1,1,1,5,1,1,62,77]
["ФАДН России","http://fadn.gov.ru/","http://fadn.gov.ru/opendata",2,1,3,0,0,0,0,0,1,0,1,"http://fadn.gov.ru/opendata/7708257207-yasnr",1,1,1,1,1,1,1,1,1,1,1,1,5,1,1,"http://fadn.gov.ru/opendata/7708257207-smszs",1,1,1,1,1,1,1,1,1,1,1,1,5,1,1,"http://fadn.gov.ru/opendata/7708257207-omnr",1,1,1,1,1,1,1,1,1,1,1,1,5,1,1,65,77]
["Россотрудничество","https://rs.gov.ru/ru","https://rs.gov.ru/opendata",2,1,0,3,1,1,1,1,0,1,0,"https://rs.gov.ru/opendata/7704706758-obektinedvigimosti/data",0,0,0,0,0,0,0,0,0,0,0,0,0,0,0,{"$nulls":32},11,77]
["Роснедра","https://www.rosnedra.gov.ru/","https://www.rosnedra.gov.ru/opendata/",2,1,3,3,1,1,1,1,0,1,1,"https://www.rosnedra.gov.ru/opendata/7703518529-DepositsGISAtlas",1,1,0,0,0,0,1,1,1,1,1,0,0,0,0,"https://www.rosnedra.gov.ru/opendata/7703518529-reestrkadastr",1,1,0,1,1,1,1,1,1,1,1,0,0,1,1,"https://www.rosnedra.gov.ru/opendata/7703518529-budjrosp",1,1,0,1,1,1,1,1,1,1,1,0,0,1,1,46,77]
["Росрыболовство","http://www.fish.gov.ru/","http://www.fish.gov.ru/opendata",2,1,0,3,0,0,0,0,0,1,0,"http://www.fish.gov.ru/opendata/7702679523-perechentu",1,1,1,1,1,1,1,1,1,1,1,1,5,1,1,"http://www.fish.gov.ru/opendata/7702679523-perechenpodved",1,1,1,1,1,1,1,1,1,1,1,1,5,1,1,"http://www.fish.gov.ru/opendata/7702679523-rezproverok",1,1,1,1,1,1,1,1,1,0,0,1,0,1,1,57,77]
["Росстандарт","https://www.rst.gov.ru/portal/gost","https://www.rst.gov.ru/portal/gost/home/systems/opendatapp",2,1,3,3,1,0,0,0,1,0,1,"https://www.rst.gov.ru/opendata/7706406291-regulations",1,1,1,1,1,1,1,1,1,1,1,1,5,1,0,"https://www.rst.gov.ru/opendata/7706406291-controlresult",1,1,1,1,1,1,1,1,1,1,1,1,5,1,1,"https://www.rst.gov.ru/opendata/7706406291-koomet",1,1,1,1,1,1,1,1,1,1,1,1,5,1,1,68,77]
["Ростуризм","https://tourism.gov.ru/","http://opendata.tourism.gov.ru/",2,1,3,3,1,1,0,0,1,1,1,"http://opendata.tourism.gov.ru/7708550300-tourismlegalacts",1,1,1,1,1,1,1,1,1,1,1,1,5,1,1,"http://opendata.tourism.gov.ru/7708550300-reestrSTR",1,1,1,1,1,1,1,1,1,1,1,1,5,1,1,"http://opendata.tourism.gov.ru/7708550300-cpprojects",1,1,1,1,1,1,1,1,1,1,1,1,5,1,1,71,77]
["Росимущество","https://rosim.gov.ru/","https://rosim.gov.ru/opendata",2,1,3,3,1,1,1,1,1,1,1,"https://rosim.gov.ru/opendata/7710723134-rvi",1,1,1,1,1,1,1,1,1,1,1,1,5,1,1,"https://rosim.gov.ru/opendata/7710723134-rfi_2_4_share_property",1,1,1,1,1,1,1,1,1,1,1,1,5,1,1,"https://rosim.gov.ru/opendata/7710723134-rfi_1_4_ship",1,1,1,1,1,1,1,1,1,1,1,1,5,1,1,73,77]
["Росархив","http://archives.gov.ru/","http://archives.gov.ru/opendata",2,1,0,3,1,1,0,0,0,1,0,"http://archives.gov.ru/opendata/7710474216-passport.shtml",1,1,1,1,1,1,1,1,1,1,1,1,0,1,1,"http://archives.gov.ru/opendata/7710474216-nimr.shtml",1,1,1,1,1,1,1,1,1,1,1,1,5,1,1,"http://archives.gov.ru/opendata/7710474216-planobshtvsovet.shtml",1,1,1,1,1,1,1,1,1,1,1,1,5,1,1,61,77]
["Росавтодор","https://rosavtodor.gov.ru/","https://rosavtodor.gov.ru/opendata",2,1,3,3,1,1,0,1,1,1,1,"https://rosavtodor.gov.ru/opendata/7717509757-kontrolrezult",1,1,1,1,1,1,1,1,1,1,1,1,5,1,1,"https://rosavtodor.gov.ru/opendata/7717509757-statbzklgrd",1,1,1,1,1,1,1,1,1,1,1,1,5,1,1,"https://rosavtodor.gov.ru/opendata/7717509757-fkuuprdorrossia",1,1,1,1,1,1,1,1,1,1,1,1,5,1,1,72,77]
["Казначейство России","http://roskazna.gov.ru/","https://roskazna.gov.ru/opendata/",1,1,3,3,1,1,0,1,1,1,1,"https://roskazna.gov.ru/opendata/7710568760-svedeniyapokazatelej/",1,1,1,1,1,1,1,1,1,1,1,1,5,1,1,"https://roskazna.gov.ru/opendata/7710568760-pokazateligosprogrammy/",1,1,1,1,1,1,1,1,1,1,1,1,5,1,1,"https://roskazna.gov.ru/opendata/7710568760-informaciyapostatistikefinanso/",1,1,1,1,1,1,1,1,1,1,1,1,5,1,1,71,77]
["ФМБА России","http://fmba.gov.ru","https://fmba.gov.ru/opendata/",2,1,3,3,1,0,0,0,0,0,0,"https://fmba.gov.ru/opendata/7734521419-infdis/",1,1,1,1,1,1,1,1,1,1,1,1,5,1,1,"https://fmba.gov.ru/opendata/7734521419-vaccnas/",1,1,1,1,1,1,1,1,1,1,1,1,0,1,1,"https://fmba.gov.ru/opendata/7734521419-donor/",1,1,1,1,1,1,1,1,1,1,1,1,5,1,1,62,77]